{"text_format":"1","workbook":"xlsx","n_sheets":11,"sheets":["NAVODILA","VNOS PODATKOV","7 SN DOK","8A POGOJI VLOGA","9A MNENJA VLOGA","11C - GD SN ZAHTEVA","12 GD SPREM","15A - IZJAVA NADZORNIKA SN","16A DOPOL VLOGE","16B DOPOL PODALJ","BAZA PODATKOV"],"not_rendered":{"charts":0,"images":25,"macros":1,"external_links":0,"defined_names":23,"comments":0,"pivot_tables":0},"unopened":[],"bounds":{"document_bytes":16777216,"sheet_cells":100000,"rows_first":2000,"rows_last":500,"rows_between":2000,"halvings":0,"cell_chars":16384,"cell_head_chars":4096},"cells_cut":0,"cells_raw":0,"read":"whole","date_system":"1900"}

{"sheet":"NAVODILA","index":0,"n_rows":44,"n_cols":1,"rows_kept":44,"cut":false,"hidden":false,"merged":[]}
[]
["NAVODILA"]
[]
["Aplikacija za pripravo obrazcev v zvezi z graditvijo objektov je pripomoček za pripravo dokumentacije in zahtevkov, izdelan v skladu s Pravilnikom o projektni in drugi dokumentaciji ter obrazcih pri graditvi objektov (Uradni list RS, št. 30/23). Nova verzija obrazcev glede na prejšnjo uvaja nekaj sprememb, opisanih v nadaljevanju. "]
[]
["Za pravilno delovanje navigacijskih in drugih ukaznih gumbov je potrebno ob odpiranju dokumenta omogočiti uporabo makrov. Uporaba makrov je vezana izključno na delovanje navigacijskih gumbov in na avtomatično generiranje vlog za mnenjedajalce na obrazcih 8 in 9. Vse osnovne funkcionalnosti, torej vnos in izpis podatkov, delujejo tudi brez delovanja makrov. Namesto z uporabo navigacijskih gumbov lahko posamezne liste izbirate v spodnji vrstici aplikacije, za tiskanje in pripravo pdf dokumentov pa uporabite ustrezne ukaze iz menija. Polja z nazivi in naslovi na vlogah za mnenjedajalce na obrazcih 8 in 9 v tem primeru izpolnite ročno. "]
[]
["DATOTEKE"]
[]
["Priloge so razdeljene v več datotek. Vsaka izmed datotek je pripravljena za posamezno skupino uporabnikov (projektanti, izvajalci, mnenjedajalci, upravni organ) tako, da vključuje vse faze posameznega postopka. Sklop za projektante je dodatno razdeljen glede na zahtevnost nameravane gradnje. \nSeznam datotek:\n- projektanti - obrazci za zahtevne in manj zahtevne objekte\n- projektanti - obrazci za nezahtevne objekte\n- projektanti - obrazci za spremembo namembnosti\n- projektanti - manjša rekonstrukcija\n- projektanti - legalizacije\n- projektanti - začasni objekti\n- izvajalci - DZO\n- mnenjedajalci - projektni pogoji in mnenja\n- upravni organ - odločbe\n\nV nadaljevanju so opisana navodila za uporabo obrazcev projektanti - sprememba namembnosti."]
[]
["KAZALO VSEBINE"]
[]
["List za vnos podatkov ima v zgornjem delu kazalo celotne vsebine. Vsebina je razporejena v tabelo po fazah upravnega postopka. Naslovi delujejo kot povezave na posamezne liste."]
[]
["VNAŠANJE PODATKOV"]
[]
["V novi verziji obrazcev se na listu za vnos podatkov vnašajo le tisti podatki, ki imajo vedno samo eno vrednost. Podatki, ki imajo lahko poljubno mnogo vrednosti, kot na primer navajanje zemljiških parcel, pa se vnašajo neposredno v obrazce. "]
[]
["Polja za vnos podatkov so smiselno razdeljena na posamezna poglavja. Nekatere vsebine vnašamo s pomočjo spustnih menijev, pri nekaterih vsebinah pa je potrebno označiti izbiro. Pod posameznimi naslovi so opombe z dodatnimi navodili za izpolnjevanje, stolpec A pa je odklenjen in je namenjen internim opombam uporabnika."]
[]
["OBRAZCI ZA ZAHTEVKE"]
[]
["Obrazci z vlogami oziroma zahtevki imajo poleg vsebin, ki se prenašajo avtomatično, tudi vsebine, ki so specifične za posamezen zahtevek. Te vsebine je potrebno izpolniti na vsaki posamezni vlogi."]
[]
["PRILAGAJANJE VIŠINE VRSTIC"]
[]
["Različne verzije programa na različne načine prikazujejo višino in širino celic, zato se lahko zgodi, da vsebina posameznih polj ni v celoti vidna. V tem primeru lahko višino celice spremenite tako, da v meniju Osnovno v skupini Poravnava izberete Prelomi besedilo, oziroma ročno spremenite višino vrstice tako, da najprej izberite celotno vrstico v stolpcu z oznakami vrstic (sivi stolpec s številkami vrstic na skrajni levi strani), na zavihku Osnovno v skupini Celice kliknite Oblika, nato pa v razdelku Velikost celice kliknite Samodejno prilagodi višino vrstice oziroma vpišete željeno višino vrstice. Enako velja za prilagajanje širine stolpcev."]
[]
["TISKANJE IN SHRANJEVANJE"]
[]
["Po končanem vnosu podatkov, potrebnih za izpolnjevanje določenega obrazca, lahko obrazec natisnete ali pa shranite kot .pdf dokument. Za tiskanje in pripravo .pdf dokumentov lahko uporabite ukazne gumbe ali pa izberete ustrezen ukaz v meniju. V skladu s pravilnikom mora biti vloga zapisana v formatu PDF/A-2b."]
[]
["TISKANJE IN SHRANJEVANJE ZAHTEVKOV ZA POGOJE IN MNENJA"]
[]
["Če želite lahko uporabite avtomatizirano pripravo zahtevkov za pogoje in mnenja, ki bodo vsebovali različne nazive, naslove in druge specifične podatke za vse navedene mnenjedajalce. To storite z izbiro gumba \"shrani vse zahtevke\". Zahtevki bodo shranjeni v mapi, v kateri se nahaja izvorna datoteka. Na enak način lahko natisnete vse zahtevke z izbiro gumba \"natisni vse zahtevke\". Zahtevke za pogoje in mnenja pa lahko pripravite tudi tako, da nazive, naslove in druge specifične podatke izpolnite ročno. Polja, ki jih je v tem primeru potrebno izpolniti ročno, so obarvana svetlo rumeno."]
[]
["PODPISOVANJE VLOG"]
[]
["Vloga se lahko v skladu z ZUP (63. člen) vloži v pisni obliki. Pisna vloga je vloga, ki je napisana ali natisnjena in lastnoročno podpisana (vloga v fizični obliki), ali vloga, ki je v elektronski obliki in je podpisana z varnim elektronskim podpisom s kvalificiranim potrdilom. Pisna vloga se praviloma izroči neposredno organu, pošlje po pošti, po elektronski poti ali preko osebe, ki opravlja posredovanje vlog kot svojo dejavnost (poslovni ponudnik). Vloga v elektronski obliki se vloži tako, da se pošlje po elektronski poti informacijskemu sistemu organa ali enotnemu informacijskemu sistemu za sprejem vlog.\n\nVlogo digitalno podpišete tako, da zahtevek shranite v obliki pdf, nato pa v pregledovalniku pdf datotek izberete ukaz vstavi digitalni podpis, za kar potrebujete kvalificirano potrdilo (npr. SIGEN-CA, ACNLB). Več o podpisovanju pdf datotek s certifikatom najdete na spodnji povezavi."]
["https://helpx.adobe.com/acrobat/using/certificate-based-signatures.html"]
[]
[]
["NADALJUJ NA VNOS PODATKOV"]

{"sheet":"VNOS PODATKOV","index":1,"n_rows":212,"n_cols":16,"rows_kept":212,"cut":false,"hidden":false,"merged":[[109,2,109,3],[122,2,122,4],[16,2,16,3],[53,2,53,3]]}
[null,null,"VSEBINA DATOTEKE:"]
[null,null,"NEZAHTEVNI OBJEKTI"]
[null,null,"OBARVANA POLJA DELUJEJO KOT POVEZAVE NA POSAMEZNE LISTE"]
[null,null,"PRIDOBIVANJE PROJEKTNIH POGOJEV","PRIDOBIVANJE MNENJ","PRIDOBIVANJE GRADBENEGA DOVOLJENJA","SPREMEMBA GRADBENEGA DOVOLJENJA","DOPUSTNA MANJŠA ODSTOPANJA","PRIJAVA ZAČETKA GRADNJE","DOPOLNITEV VLOGE","PODALJŠANJE ROKA ZA DOPOLNITEV"]
[null,null,"ZAHTEVKI"]
[null,null,"8A - POGOJI","9A - MNENJA","11B - GRADBENO DOVOLJENJE","12 - SPREMEMBA GRADBENEGA DOVOLJENJA","9A - MNENJE GLEDE DOPUSTNIH MANJŠIH ODSTOPANJ","13B - PRIJAVA ZAČETKA GRADNJE","16A - DOPOLNITEV VLOGE","16B - ZAHTEVA ZA PODALJŠANJE ROKA ZA DOPOLNITEV"]
[null,null,null,null,"MNENJA","MNENJA"]
[]
[]
[null,null,"PROJEKTNA DOKUMENTACIJA"]
[null,null,"DNZO","DNZO","DNZO","DNZO"]
[null,null,"ZBIRNI PRIKAZ","ZBIRNI PRIKAZ","ZBIRNI PRIKAZ","ZBIRNI PRIKAZ"]
[null,null,"6 - DNZO LIST 1","6 - DNZO LIST 1","6 - DNZO LIST 1","6 - DNZO LIST 1"]
[null,null,"6 - DNZO LIST 2","6 - DNZO LIST 2","6 - DNZO LIST 2","6 - DNZO LIST 2"]
[null,null,"6 - DNZO LIST 3","6 - DNZO LIST 3","6 - DNZO LIST 3","6 - DNZO LIST 3"]
[]
["PROSTOR ZA OPOMBE ",null,"VNOS PODATKOV"]
[]
[null,"A","UDELEŽENCI PRI GRADITVI"]
[null,"A1","POOBLAŠČENEC"]
[null,null,"INVESTITOR"]
[null,"A1.1","INVESTITOR"]
[null,null,"INVESTITOR 1"]
[null,null,"ime in priimek ali naziv družbe"]
[null,null,"naslov ali sedež družbe"]
[null,null,"davčna številka"]
[null,null,"INVESTITOR 2"]
[null,null,"ime in priimek ali naziv družbe"]
[null,null,"naslov ali sedež družbe"]
[null,null,"davčna številka"]
[null,null,"INVESTITOR 3"]
[null,null,"ime in priimek ali naziv družbe"]
[null,null,"naslov ali sedež družbe"]
[null,null,"davčna številka"]
[null,"A1.2","KONTAKTNA OSEBA"]
[null,null,"ime in priimek"]
[null,null,"telefonska številka"]
[null,null,"elektronski naslov"]
[null,"A1.3","POOBLAŠČENEC"]
[null,null,"podatki se vpišejo, kadar je imenovan pooblaščenec"]
[null,null,"Investitor imenuje pooblaščenca",false]
[null,null,"ime in priimek ali naziv družbe"]
[null,null,"naslov ali sedež družbe"]
[null,null,"kontaktna oseba"]
[null,null,"telefonska številka"]
[null,null,"elektronski naslov"]
[null,"A2","PROJEKTANT"]
[null,"A2.1","PROJEKTANT "]
[null,null,"PODATKI O DRUŽBI"]
[null,null,"projektant (naziv družbe)"]
[null,null,"naslov"]
[null,"A3","NADZORNIK"]
[null,"A3.1","NADZORNIK"]
[null,null,"imenovanje nadzornika ni obvezno v primeru gradnje nezahtevnega objekta, če jo izvaja izvajalec, ki izpolnjuje pogoje za opravljanje dejavnosti gradbeništva (16. člen GZ-1)"]
[null,null,"imenovan je nadzornik gradnje",true]
[null,null,"PODATKI O DRUŽBI"]
[null,null,"naziv družbe"]
[null,null,"poslovni naslov družbe"]
[null,null,"davčna številka za pravne subjekte"]
[null,null,"odgovorna oseba nadzornika"]
[null,null,"VODJA NADZORA"]
[null,null,"vodja nadzora"]
[null,null,"strokovna izobrazba"]
[null,null,"identifikacijska številka"]
[null,"B","PODATKI O DOKUMENTACIJI"]
[null,null,"podatki se vpišejo, če dokumentacijo izdela projektant"]
[null,"B1","PROJEKTNA DOKUMENTACIJA"]
[null,null,"vrsta projektne dokumentacije","DSN (dokumentacija za pridobitev gradbenega dovoljenja za spremembo namembnosti)"]
[null,null,"številka projekta"]
[null,null,"datum izdelave"]
[null,"C","PODATKI O GRADNJI"]
[null,"C1","OSNOVNI PODATKI"]
[null,"C1.1","OPIS GRADNJE"]
[null,null,"naziv gradnje"]
[null,null,"naziv gradnje se določi po namenu glavnega objekta"]
[null,null,"kratek opis gradnje"]
[null,null,"opis spremembe namembnosti in njenih značilnosti, opis dela stavbe ali gradbeno inženirskega objekta, ki se mu spreminja namembnost, ter opis pričakovanih vplivov gradnje"]
[null,null,"naslov stavbe"]
[null,null,"zahtevnost objekta"]
[null,null,"identifikacijska oznaka stavbe"]
[null,null,"identifikacijska oznaka dela stavbe"]
[null,null,"klasifikacija po CC-SI"]
[null,null,"bruto tlorisna površina"]
[]
[null,"C1.3","VEČJA ODSTOPANJA"]
[null,null,"izpolniti, če gre za spremembo gradbenega dovoljenja"]
[null,null,"kratek opis spremembe zaradi večjih odstopanj od gradbenega dovoljenja"]
[null,"C2","VRSTE GRADNJE"]
[null,"C2.1","VRSTE GRADNJE"]
[null,null,"označiti vse ustrezne vrste gradnje"]
[null,null,"NOVOGRADNJA - NOVOZGRAJEN OBJEKT",false,{"$f":"IF($D91=FALSE,\"\",MAX(E$90:E90)+1)","v":""}]
[null,null,"NOVOGRADNJA - PRIZIDAVA",false,{"$f":"IF($D92=FALSE,\"\",MAX(E$90:E91)+1)","v":""}]
[null,null,"REKONSTRUKCIJA",false,{"$f":"IF($D93=FALSE,\"\",MAX(E$90:E92)+1)","v":""}]
[null,null,"SPREMEMBA NAMEMBNOSTI",false,{"$f":"IF($D94=FALSE,\"\",MAX(E$90:E93)+1)","v":""}]
[null,null,"LEGALIZACIJA",false,{"$f":"IF($D95=FALSE,\"\",MAX(E$90:E94)+1)","v":""}]
[null,null,"vloga se nanaša samo na nezahtevni objekt",false]
[null,"C3","POSEBNI PRIMERI"]
[null,"C3.2","POROČILO O VPLIVIH NA OKOLJE (PVO)"]
[null,null,"podatki se vpišejo, kadar gre za objekt z vplivi na okolje"]
[null,null,"objekt z vplivi na okolje",false]
[null,null,"številka poročila"]
[null,null,"datum izdelave poročila"]
[null,null,"izdelovalec poročila"]
[null,"C3.3","PREDHODNA PRESOJA VPLIVOV NA OKOLJE"]
[null,null,"podatki se vpišejo, če gre za objekt z vplivi na okolje in če je bil izveden predhodni postopek v skladu z zakonom, ki ureja varstvo okolja"]
[null,null,"predhodna presoja vplivov na okolje",false]
[null,null,"številka sklepa"]
[null,null,"datum sklepa"]
[null,"C3.7","DOVOLJENJA ZA OBSTOJEČI OBJEKT"]
[null,null,"podatek se vpiše, če se gradnja nanaša na obstoječ objekt (rekonstrukcija, odstranitev, sprememba namembnosti, novogradnja - prizidava)"]
[null,null,"naslov stavbe, če je določen"]
[null,null,"številka stavbe"]
[null,null,"številka posameznega dela stavbe"]
[null,null,"objekt, zgrajen pred 31. 12. 1967",false]
[null,null,"navedba upravnega organa, ki je izdal odločbo"]
[null,null,"številka GD ali odločbe o legalizaciji ali odločbe o objektu daljšega obstoja"]
[null,null,"datum odločbe"]
[null,"D","LOKACIJSKI PODATKI"]
[null,"D1","PROSTORSKI AKT"]
[null,"D1.1","PROSTORSKI AKT"]
[null,null,"prostorski akt"]
[null,"E","POGOJI IN MNENJA"]
[null,null,"Izpolniti v IZP in DGD, če je za poseg relevantno. V stolpcu B odkljukajte pridobljene pogoje oziroma mnenja, nato pa v stolpec E vpišite oziroma izberite mnenjedajalca. V nekaterih primerih se bo stolpec F z naslovom mnenjedajalca izpolnil avtomatično, sicer pa ga navedite sami. V stolpec G in H navedite podatke o pridobljenih pogojih, v stolpec I in J pa o pridobljenih mnenjih.",false]
[null,"E1.1","SKLADNOST S PROSTORSKIMI AKTI"]
[null,null,null,null,"MNENJEDAJALEC",null,"PROJEKTNI POGOJI",null,"MNENJE"]
[null,null,"področje","naziv mnenja","navedba mnenjedajalca","naslov mnenjedajalca","številka projektnih pogojev","datum projektnih pogojev","datum podaje zahtevka za mnenje","številka mnenja","datum mnenja"]
[null,false,"OBČINA","SKLADNOST S PROSTORSKIMI AKTI",null,null,null,null,null,null,null,{"$f":"IF($B127=FALSE,\"\",MAX(L126:L$126)+1)","v":""}]
[null,"E1.2","VAROVANA, VARSTVENA IN OGROŽENA OBMOČJA, VODNA IN PRIOBALNA ZEMLJIŠČA"]
[null,null,null,null,"MNENJEDAJALEC",null,"PROJEKTNI POGOJI",null,"MNENJE"]
[null,null,"področje","naziv mnenja","navedba mnenjedajalca","naslov mnenjedajalca","številka projektnih pogojev","datum projektnih pogojev","datum podaje zahtevka za mnenje","številka mnenja","datum mnenja"]
[null,false,"VARSTVO KULTURNE DEDIŠČINE - POSEG","KULTUROVARSTVENO MNENJE ZA POSEG",null,{"$f":"IFERROR(INDEX('BAZA PODATKOV'!$B$228:$B$235,MATCH(E131,'BAZA PODATKOV'!$A$228:$A$235,0),1),\"\")","v":""},null,null,null,null,null,{"$f":"IF($B131=FALSE,\"\",MAX(L$130:L130)+1)","v":""},null,null,null,{"$f":"IFERROR(INDEX($C$131:$K$140,MATCH(ROW()-ROW($P$130),$O$131:$O$140,0),1),\"\")","v":""}]
[null,false,"VARSTVO KULTURNE DEDIŠČINE - RAZISKAVA IN ODSTRANITEV","KULTURNOVARSTVENO MNENJE ZA RAZISKAVO IN ODSTRANITEV",null,{"$f":"IFERROR(INDEX('BAZA PODATKOV'!$B$228:$B$235,MATCH(E132,'BAZA PODATKOV'!$A$228:$A$235,0),1),\"\")","v":""},null,null,null,null,null,{"$f":"IF($B132=FALSE,\"\",MAX(L$130:L131)+1)","v":""},null,null,null,""]
[null,false,"VARSTVO NARAVE","NARAVOVARSTVENO MNENJE",null,{"$f":"IFERROR(INDEX('BAZA PODATKOV'!$B$228:$B$318,MATCH(E133,'BAZA PODATKOV'!$A$228:$A$318,0),1),\"\")","v":""},null,null,null,null,null,{"$f":"IF($B133=FALSE,\"\",MAX(L$130:L132)+1)","v":""},null,null,null,""]
[null,false,"VARSTVO PODZEMNIH JAM","MNENJE ZA POSEG V JAME",null,{"$f":"IFERROR(INDEX('BAZA PODATKOV'!$B$228:$B$318,MATCH(E134,'BAZA PODATKOV'!$A$228:$A$318,0),1),\"\")","v":""},null,null,null,null,null,{"$f":"IF($B134=FALSE,\"\",MAX(L$130:L133)+1)","v":""},null,null,null,""]
[null,false,"VARSTVO VODA","VODNO MNENJE",null,{"$f":"IFERROR(INDEX('BAZA PODATKOV'!$B$228:$B$318,MATCH(E135,'BAZA PODATKOV'!$A$228:$A$318,0),1),\"\")","v":""},null,null,null,null,null,{"$f":"IF($B135=FALSE,\"\",MAX(L$130:L134)+1)","v":""},null,null,null,""]
[null,false,"VARSTVO GOZDOV","MNENJE ZA GRADNJO V GOZDNEM PROSTORU",null,{"$f":"IFERROR(INDEX('BAZA PODATKOV'!$B$228:$B$318,MATCH(E136,'BAZA PODATKOV'!$A$228:$A$318,0),1),\"\")","v":""},null,null,null,null,null,{"$f":"IF($B136=FALSE,\"\",MAX(L$130:L135)+1)","v":""},null,null,null,""]
[null,false,"RIBIŠKI OKOLIŠ","MNENJE ZA GRADNJO IN DRUGE POSEGE NA OBMOČJU RIBIŠKEGA OKOLIŠA","Zavod za ribištvo Slovenije","Spodnje Gameljne 61a\n1000 Ljubljana",null,null,null,null,null,{"$f":"IF($B137=FALSE,\"\",MAX(L$130:L136)+1)","v":""},null,null,null,""]
[null,false,"OKOLJE DIVJADI","MNENJE ZA POSEGE V OKOLJE DIVJADI",null,{"$f":"IFERROR(INDEX('BAZA PODATKOV'!$B$228:$B$318,MATCH(E138,'BAZA PODATKOV'!$A$228:$A$318,0),1),\"\")","v":""},null,null,null,null,null,{"$f":"IF($B138=FALSE,\"\",MAX(L$130:L137)+1)","v":""}]
[null,false,"OBMOČJE MEJNEGA PREHODA","MNENJE ZA GRADNJO NA OBMOČJU MEJNEGA PREHODA",null,{"$f":"IFERROR(INDEX('BAZA PODATKOV'!$B$293:$B$301,MATCH(E139,'BAZA PODATKOV'!$A$293:$A$301,0),1),\"\")","v":""},null,null,null,null,null,{"$f":"IF($B139=FALSE,\"\",MAX(L$130:L138)+1)","v":""}]
[null,false,"CARINA","MNENJE ZA GRADNJO OBJEKTOV V PROSTI CONI CARINSKEGA OBMOČJA UNIJE","Finančna uprava Republike Slovenije","Šmartinska cesta 55, 1000 Ljubljana",null,null,null,null,null,{"$f":"IF($B140=FALSE,\"\",MAX(L$130:L139)+1)","v":""}]
[null,false,"LETALIŠČA","MNENJE ZA GRADNJO V OBMOČJU IZKLJUČNE, OMEJENE IN NADZOROVANE RABE","Javna agencija za civilno letalstvo","Kotnikova 19a, 1000 Ljubljana",null,null,null,null,null,{"$f":"IF($B141=FALSE,\"\",MAX(L$130:L140)+1)","v":""}]
[null,false,"OVIRE ZA ZRAČNI PROMET","MNENJE ZA POSTAVLJANJE OVIR ZA ZRAČNI PROMET",null,null,null,null,null,null,null,{"$f":"IF($B142=FALSE,\"\",MAX(L$130:L141)+1)","v":""}]
[null,false,"VARNOST PLOVBE","MNENJE ZA GRADNJO ALI OBNOVO OBJEKTOV PRISTANIŠKE INFRASTRUKTURE ALI OBJEKTOV, KI LAHKO VPLIVAJO NA VARNOST PLOVBE NA OBALI ALI V MORJU","Uprava RS za pomorstvo","Ukmarjev trg 2, 6000 Koper",null,null,null,null,null,{"$f":"IF($B143=FALSE,\"\",MAX(L$130:L142)+1)","v":""}]
[null,false,"OBJEKT V MEJAH RUDNIŠKEGA PROSTORA","MNENJE ZA GRADNJO V MEJAH RUDNIŠKEGA PROSTORA","Ministrstvo za infrastrukturo","Langusova ulica 4, 1535 Ljubljana",null,null,null,null,null,{"$f":"IF($B144=FALSE,\"\",MAX(L$130:L143)+1)","v":""}]
[null,false,"OBJEKT V VAROVALNEM PASU ŽIČNIŠKE NAPRAVE",false,null,null,null,null,null,null,null,{"$f":"IF($B145=FALSE,\"\",MAX(L$130:L144)+1)","v":""}]
[null,false,"DRUGO (NAVEDI)","MNENJE",null,null,null,null,null,null,null,{"$f":"IF($B146=FALSE,\"\",MAX(L$130:L145)+1)","v":""}]
[null,false,"DRUGO (NAVEDI)","MNENJE",null,null,null,null,null,null,null,{"$f":"IF($B147=FALSE,\"\",MAX(L$130:L146)+1)","v":""}]
[null,false,"DRUGO (NAVEDI)","MNENJE",null,null,null,null,null,null,null,{"$f":"IF($B148=FALSE,\"\",MAX(L$130:L147)+1)","v":""}]
[null,"E1.3","VAROVALNI PASOVI INFRASTRUKTURE"]
[null,null,null,null,"MNENJEDAJALEC",null,"PROJEKTNI POGOJI",null,"MNENJE"]
[null,null,"področje","naziv mnenja","navedba mnenjedajalca","naslov mnenjedajalca","številka projektnih pogojev","datum projektnih pogojev","datum podaje zahtevka za mnenje","številka mnenja","datum mnenja"]
[null,false,"VODOVOD","MNENJE",null,null,null,null,null,null,null,{"$f":"IF($B152=FALSE,\"\",MAX(L$151:L151)+1)","v":""}]
[null,false,"ELEKTRIKA","MNENJE Z VIDIKA VAROVANJA ENERGETSKIH SISTEMOV",null,{"$f":"IFERROR(INDEX('BAZA PODATKOV'!$B$228:$B$318,MATCH(E153,'BAZA PODATKOV'!$A$228:$A$318,0),1),\"\")","v":""},null,null,null,null,null,{"$f":"IF($B153=FALSE,\"\",MAX(L$151:L152)+1)","v":""}]
[null,false,"PLIN","MNENJE Z VIDIKA VAROVANJA ENERGETSKIH SISTEMOV",null,null,null,null,null,null,null,{"$f":"IF($B154=FALSE,\"\",MAX(L$151:L153)+1)","v":""}]
[null,false,"TOPLOVOD","MNENJE",null,null,null,null,null,null,null,{"$f":"IF($B155=FALSE,\"\",MAX(L$151:L154)+1)","v":""}]
[null,false,"FEKALNE VODE","MNENJE",null,null,null,null,null,null,null,{"$f":"IF($B156=FALSE,\"\",MAX(L$151:L155)+1)","v":""}]
[null,false,"METEORNE VODE","MNENJE",null,null,null,null,null,null,null,{"$f":"IF($B157=FALSE,\"\",MAX(L$151:L156)+1)","v":""}]
[null,false,"KOMUNIKACIJSKI VODI","MNENJE",null,null,null,null,null,null,null,{"$f":"IF($B158=FALSE,\"\",MAX(L$151:L157)+1)","v":""}]
[null,false,"JAVNE CESTE","MNENJE ZA GRADNJO Z VIDIKA VAROVANJA JAVNIH CEST",null,null,null,null,null,null,null,{"$f":"IF($B159=FALSE,\"\",MAX(L$151:L158)+1)","v":""}]
[null,false,"ŽELEZNICE - GRADNJA","MNENJE ZA GRADNJO V PRAGOVNEM PASU ŽELEZNICE",null,null,null,null,null,null,null,{"$f":"IF($B160=FALSE,\"\",MAX(L$151:L159)+1)","v":""}]
[null,false,"ŽELEZNICE","MNENJE ZA ZAGOTAVLJANJE INTEROPERABILNOSTI IN VARNOSTI",null,null,null,null,null,null,null,{"$f":"IF($B161=FALSE,\"\",MAX(L$151:L160)+1)","v":""}]
[null,false,"DRUGO (NAVEDI)","MNENJE",null,null,null,null,null,null,null,{"$f":"IF($B162=FALSE,\"\",MAX(L$151:L161)+1)","v":""}]
[null,false,"DRUGO (NAVEDI)","MNENJE",null,null,null,null,null,null,null,{"$f":"IF($B163=FALSE,\"\",MAX(L$151:L162)+1)","v":""}]
[null,false,"DRUGO (NAVEDI)","MNENJE",null,null,null,null,null,null,null,{"$f":"IF($B164=FALSE,\"\",MAX(L$151:L163)+1)","v":""}]
[null,"E1.4","PRIKLJUČEVANJE NA INFRASTRUKTURO"]
[null,null,null,null,"MNENJEDAJALEC",null,"PROJEKTNI POGOJI",null,"MNENJE"]
[null,null,"področje","naziv mnenja","navedba mnenjedajalca","naslov mnenjedajalca","številka projektnih pogojev","datum projektnih pogojev","datum podaje zahtevka za mnenje","številka mnenja","datum mnenja"]
[null,false,"VODOVOD","MNENJE ALI SOGLASJE ZA PRIKLJUČITEV",null,null,null,null,null,null,null,{"$f":"IF($B168=FALSE,\"\",MAX(L$167:L167)+1)","v":""}]
[null,false,"ELEKTRIKA","MNENJE ALI SOGLASJE ZA PRIKLJUČITEV",null,{"$f":"IFERROR(INDEX('BAZA PODATKOV'!$B$228:$B$318,MATCH(E169,'BAZA PODATKOV'!$A$228:$A$318,0),1),\"\")","v":""},null,null,null,null,null,{"$f":"IF($B169=FALSE,\"\",MAX(L$167:L168)+1)","v":""}]
[null,false,"PLIN","MNENJE ALI SOGLASJE ZA PRIKLJUČITEV",null,null,null,null,null,null,null,{"$f":"IF($B170=FALSE,\"\",MAX(L$167:L169)+1)","v":""}]
[null,false,"TOPLOVOD","MNENJE ALI SOGLASJE ZA PRIKLJUČITEV",null,null,null,null,null,null,null,{"$f":"IF($B171=FALSE,\"\",MAX(L$167:L170)+1)","v":""}]
[null,false,"FEKALNE VODE","MNENJE ALI SOGLASJE ZA PRIKLJUČITEV",null,null,null,null,null,null,null,{"$f":"IF($B172=FALSE,\"\",MAX(L$167:L171)+1)","v":""}]
[null,false,"METEORNE VODE","MNENJE ALI SOGLASJE ZA PRIKLJUČITEV",null,null,null,null,null,null,null,{"$f":"IF($B173=FALSE,\"\",MAX(L$167:L172)+1)","v":""}]
[null,false,"DOSTOP","MNENJE ALI SOGLASJE ZA PRIKLJUČITEV",null,null,null,null,null,null,null,{"$f":"IF($B174=FALSE,\"\",MAX(L$167:L173)+1)","v":""}]
[null,false,"KOMUNIKACIJE","MNENJE ALI SOGLASJE ZA PRIKLJUČITEV",null,null,null,null,null,null,null,{"$f":"IF($B175=FALSE,\"\",MAX(L$167:L174)+1)","v":""}]
[null,false,"DRUGO (NAVEDI)","MNENJE",null,null,null,null,null,null,null,{"$f":"IF($B176=FALSE,\"\",MAX(L$167:L175)+1)","v":""}]
[null,false,"DRUGO (NAVEDI)","MNENJE",null,null,null,null,null,null,null,{"$f":"IF($B177=FALSE,\"\",MAX(L$167:L176)+1)","v":""}]
[null,false,"DRUGO (NAVEDI)","MNENJE",null,null,null,null,null,null,null,{"$f":"IF($B178=FALSE,\"\",MAX(L$167:L177)+1)","v":""}]
[null,"E1.5","DRUGA MNENJA"]
[null,null,null,null,"MNENJEDAJALEC",null,"PROJEKTNI POGOJI",null,"MNENJE"]
[null,null,"področje","naziv mnenja","navedba mnenjedajalca","naslov mnenjedajalca","številka projektnih pogojev","datum projektnih pogojev","datum podaje zahtevka za mnenje","številka mnenja","datum mnenja"]
[null,false,"JEDRSKA VARNOST ","MNENJE H GRADNJAM, KI VPLIVAJO NA JEDRSKO VARNOST","Uprava RS za jedrsko varnost","Litostrojska cesta 54, 1000 Ljubljana",null,null,null,null,null,{"$f":"IF($B182=FALSE,\"\",MAX(L$181:L181)+1)","v":""}]
[null,false,"SEVALNA VARNOST ","MNENJE H GRADNJAM, KI VPLIVAJO NA SEVALNO VARNOST","Uprava RS za jedrsko varnost","Litostrojska cesta 54, 1000 Ljubljana",null,null,null,null,null,{"$f":"IF($B183=FALSE,\"\",MAX(L$181:L182)+1)","v":""}]
[null,false,"KMETIJSKO GOSPODARSTVO","MNENJE ZA GRADNJO ALI REKONSTRUKCIJO VELIKEGA OBRATA KMETIJSKEGA GOSPODARSTVA","Ministrstvo za kmetijstvo, gozdarstvo in prehrano","Dunajska 22, 1000 Ljubljana",null,null,null,null,null,{"$f":"IF($B184=FALSE,\"\",MAX(L$181:L183)+1)","v":""}]
[null,false,"VETERINA","MNENJE ZA GRADNJO OBJEKTA POD VETERINARSKIM NADZOROM","Uprava RS za varno hrano, veterinarstvo in varstvo rastlin","Dunajska 22, 1000 Ljubljana",null,null,null,null,null,{"$f":"IF($B185=FALSE,\"\",MAX(L$181:L184)+1)","v":""}]
[null,false,"OBRAMBA","MNENJE ZA GRADNJO NEKATERIH OBJEKTOV Z VIDIKA UPOŠTEVANJA OBRAMBNIH POTREB","Ministrstvo za obrambo","Vojkova cesta 55, 1000 Ljubljana",null,null,null,null,null,{"$f":"IF($B186=FALSE,\"\",MAX(L$181:L185)+1)","v":""}]
[null,false,"DRUGO (NAVEDI)","MNENJE",null,null,null,null,null,null,null,{"$f":"IF($B187=FALSE,\"\",MAX(L$181:L186)+1)","v":""}]
[null,false,"DRUGO (NAVEDI)","MNENJE",null,null,null,null,null,null,null,{"$f":"IF($B188=FALSE,\"\",MAX(L$181:L187)+1)","v":""}]
[null,false,"DRUGO (NAVEDI)","MNENJE",null,null,null,null,null,null,null,{"$f":"IF($B189=FALSE,\"\",MAX(L$181:L188)+1)","v":""}]
[null,"F","UPRAVNI POSTOPKI"]
[null,"F0.1","NAVEDBA ORGANA, PRI KATEREM SE VLAGA ZAHTEVA"]
[null,null,"Pri avtomatičnem generiranju PDF datotek z zahtevki za pogoje in mnenja se podatki vpišejo avtomatično."]
[null,null,"naziv"]
[null,null,"naslov"]
[null,"F1","GRADBENO DOVOLJENJE"]
[null,"F1.1","PODATKI ZA IZRAČUN UPRAVNE TAKSE"]
[null,null,"Samo v DGD in PID. V DGD se vpiše prva vrednost, v fazi PID pa druga vrednost."]
[null,null,"ocenjena vrednost objekta v EUR brez DDV"]
[null,"F1.2","PODATKI O IZDANEM GRADBENEM DOVOLJENJU"]
[null,null,"Navedejo se vsa pridobljena gradbena dovoljenja. Izpolni se za spremembo GD, prijavo pričetka del in pripravljalnih del ter za pridobivanje uporabnega dovoljenja."]
[null,null,"navedba organa"]
[null,null,"številka dovoljenja"]
[null,null,"datum dovoljenja"]
[null,null,"dokončnost"]
[null,null,"pravnomočnost"]
[null,"F1.3","PODATKI O SPREMEMBI GRADBENEGA DOVOLJENJA"]
[null,null,"Navedejo se vsa pridobljena gradbena dovoljenja. Izpolni se za spremembo GD, prijavo pričetka del in pripravljalnih del ter za pridobivanje uporabnega dovoljenja."]
[null,null,"navedba organa"]
[null,null,"številka dovoljenja"]
[null,null,"datum dovoljenja"]
[null,null,"dokončnost"]
[null,null,"pravnomočnost"]

{"sheet":"7 SN DOK","index":2,"n_rows":53,"n_cols":3,"rows_kept":53,"cut":false,"hidden":false,"merged":[[1,0,1,2]]}
["PRILOGA 7"]
["DOKUMENTACIJA ZA PRIDOBITEV \nGRADBENEGA DOVOLJENJA \nZA SPREMEMBO NAMEMBNOSTI"]
["PODATKI O INVESTITORJU IN OBJEKTU"]
["INVESTITOR"]
["INVESTITOR 1"]
["ime in priimek ali naziv družbe",null,{"$f":"'VNOS PODATKOV'!D24","v":0}]
["naslov ali sedež družbe",null,{"$f":"'VNOS PODATKOV'!D25","v":0}]
["INVESTITOR 2"]
["ime in priimek ali naziv družbe",null,{"$f":"'VNOS PODATKOV'!D28","v":0}]
["naslov ali sedež družbe",null,{"$f":"'VNOS PODATKOV'!D29","v":0}]
["INVESTITOR 3"]
["ime in priimek ali naziv družbe",null,{"$f":"'VNOS PODATKOV'!D32","v":0}]
["naslov ali sedež družbe",null,{"$f":"'VNOS PODATKOV'!D33","v":0}]
["OPIS SPREMEMBE NAMEMBNOSTI"]
["opis spremembe namembnosti in njenih značilnosti, opis dela stavbe ali gradbeno inženirskega objekta, ki se mu spreminja namembnost, ter opis pričakovanih vplivov gradnje",null,{"$f":"'VNOS PODATKOV'!D76","v":0}]
["PODATKI O STAVBAH IN GRADBENO INŽENIRSKIH OBJEKTIH"]
["naslov stavbe",null,{"$f":"'VNOS PODATKOV'!D77","v":0}]
["zahtevnost objekta",null,{"$f":"'VNOS PODATKOV'!D78","v":0}]
["identifikacijska oznaka stavbe",null,{"$f":"'VNOS PODATKOV'!D79","v":0}]
["identifikacijska oznaka dela stavbe",null,{"$f":"'VNOS PODATKOV'!D80","v":0}]
["klasifikacija po CC-SI",null,{"$f":"'VNOS PODATKOV'!D81","v":0}]
["bruto tlorisna površina",null,{"$f":"'VNOS PODATKOV'!D82","v":0}]
["LOKACIJSKI PODATKI"]
["prostorski akt",null,{"$f":"'VNOS PODATKOV'!D121","v":0}]
["GRADBENA PARCELA"]
["samo za stavbe"]
["velikost gradbene parcele"]
["GRADBENA PARCELA - PARC. ŠT"]
["katastrska občina"]
["parc. št."]
["parcela m2"]
["območje gradbene parcele m2"]
["po potrebi dodati vrstice",null,0]
["GRADBENA PARCELA - OBMOČJA STVARNE SLUŽNOSTI"]
["katastrska občina"]
["parc. št."]
["parcela m2"]
["območje gradbene parcele m2"]
["po potrebi dodati vrstice",null,0]
["GRADBENA PARCELA - OBMOČJA STAVBNIH PRAVIC"]
["katastrska občina"]
["parc. št."]
["parcela m2"]
["območje gradbene parcele m2"]
["po potrebi dodati vrstice",null,0]
[]
["datum izdelave",null,{"$f":"'VNOS PODATKOV'!D70","v":"00:00:00"}]
["izdelal"]
[]
[]
["PRILOGE"]
[null,null,"Tlorisi novega stanja in vertikalni prerez, če gre za stavbe in prikaz celotne etaže stavbe z oznako dela stavbe, ki se mu spreminja namembnost, če se spreminja le namembnost dela stavbe, vključno s prikazi novega stanja glede zahtev požarne varnosti - meje požarnih in dimnih sektorjev in evakuacijske poti"]
[null,null,"Pregledna situacija in gradbena situacija novega stanja objekta, če gre za gradbeno inženirske objekte"]

{"sheet":"8A POGOJI VLOGA","index":3,"n_rows":67,"n_cols":3,"rows_kept":67,"cut":false,"hidden":false,"merged":[[60,0,60,2],[34,0,34,2],[1,0,1,2],[17,0,17,2],[30,0,30,2],[31,0,31,1],[32,0,32,1]]}
["PRILOGA 8A"]
["ZAHTEVA ZA IZDAJO \nPROJEKTNIH IN DRUGIH POGOJEV"]
[]
[{"$f":"'VNOS PODATKOV'!C22","v":"INVESTITOR"}]
[{"$f":"'VNOS PODATKOV'!C23","v":"INVESTITOR 1"}]
[{"$f":"'VNOS PODATKOV'!C24","v":"ime in priimek ali naziv družbe"},null,{"$f":"'VNOS PODATKOV'!D24","v":0}]
[{"$f":"'VNOS PODATKOV'!C25","v":"naslov ali sedež družbe"},null,{"$f":"'VNOS PODATKOV'!D25","v":0}]
[{"$f":"'VNOS PODATKOV'!C26","v":"davčna številka"},null,{"$f":"'VNOS PODATKOV'!D26","v":0}]
[{"$f":"'VNOS PODATKOV'!C27","v":"INVESTITOR 2"}]
[{"$f":"'VNOS PODATKOV'!C28","v":"ime in priimek ali naziv družbe"},null,{"$f":"'VNOS PODATKOV'!D28","v":0}]
[{"$f":"'VNOS PODATKOV'!C29","v":"naslov ali sedež družbe"},null,{"$f":"'VNOS PODATKOV'!D29","v":0}]
[{"$f":"'VNOS PODATKOV'!C30","v":"davčna številka"},null,{"$f":"'VNOS PODATKOV'!D30","v":0}]
[{"$f":"'VNOS PODATKOV'!C31","v":"INVESTITOR 3"}]
[{"$f":"'VNOS PODATKOV'!C32","v":"ime in priimek ali naziv družbe"},null,{"$f":"'VNOS PODATKOV'!D32","v":0}]
[{"$f":"'VNOS PODATKOV'!C33","v":"naslov ali sedež družbe"},null,{"$f":"'VNOS PODATKOV'!D33","v":0}]
[{"$f":"'VNOS PODATKOV'!C34","v":"davčna številka"},null,{"$f":"'VNOS PODATKOV'!D34","v":0}]
[]
[{"$f":"'VNOS PODATKOV'!C35","v":"KONTAKTNA OSEBA"}]
[{"$f":"'VNOS PODATKOV'!C36","v":"ime in priimek"},null,{"$f":"'VNOS PODATKOV'!D36","v":0}]
[{"$f":"'VNOS PODATKOV'!C37","v":"telefonska številka"},null,{"$f":"'VNOS PODATKOV'!D37","v":0}]
[{"$f":"'VNOS PODATKOV'!C38","v":"elektronski naslov"},null,{"$f":"'VNOS PODATKOV'!D38","v":0}]
[]
[{"$f":"'VNOS PODATKOV'!C39","v":"POOBLAŠČENEC"}]
[{"$f":"'VNOS PODATKOV'!C40","v":"podatki se vpišejo, kadar je imenovan pooblaščenec"}]
[{"$f":"'VNOS PODATKOV'!C42","v":"ime in priimek ali naziv družbe"},null,{"$f":"IF('VNOS PODATKOV'!D$41=TRUE,'VNOS PODATKOV'!D42, \"\")","v":""}]
[{"$f":"'VNOS PODATKOV'!C43","v":"naslov ali sedež družbe"},null,{"$f":"IF('VNOS PODATKOV'!D$41=TRUE,'VNOS PODATKOV'!D43, \"\")","v":""}]
[{"$f":"'VNOS PODATKOV'!C44","v":"kontaktna oseba"},null,{"$f":"IF('VNOS PODATKOV'!D$41=TRUE,'VNOS PODATKOV'!D44, \"\")","v":""}]
[{"$f":"'VNOS PODATKOV'!C45","v":"telefonska številka"},null,{"$f":"IF('VNOS PODATKOV'!D$41=TRUE,'VNOS PODATKOV'!D45, \"\")","v":""}]
[{"$f":"'VNOS PODATKOV'!C46","v":"elektronski naslov"},null,{"$f":"IF('VNOS PODATKOV'!D$41=TRUE,'VNOS PODATKOV'!D46, \"\")","v":""}]
[]
["NAVEDBA ORGANA, PRI KATEREM SE VLAGA ZAHTEVA"]
[{"$f":"'VNOS PODATKOV'!C193","v":"naziv"}]
[{"$f":"'VNOS PODATKOV'!C194","v":"naslov"}]
[]
["PODATKI O GRADNJI"]
[{"$f":"'VNOS PODATKOV'!C74","v":"naziv gradnje"},null,{"$f":"'VNOS PODATKOV'!D74","v":0}]
[{"$f":"'VNOS PODATKOV'!C76","v":"kratek opis gradnje"},null,{"$f":"'VNOS PODATKOV'!D76","v":0}]
[{"$f":"'VNOS PODATKOV'!C89","v":"VRSTE GRADNJE"},null,{"$f":"IFERROR(INDEX('VNOS PODATKOV'!$C$116:$D$124,MATCH(ROW()-ROW(#REF!),'VNOS PODATKOV'!$E$116:$E$124,0),1),\"\")","v":""}]
["navesti vse ustrezne vrste gradnje"]
[{"$f":"IF('VNOS PODATKOV'!D91=TRUE,TRUE,FALSE)","v":false},null,{"$f":"'VNOS PODATKOV'!C91","v":"NOVOGRADNJA - NOVOZGRAJEN OBJEKT"}]
[{"$f":"IF('VNOS PODATKOV'!D92=TRUE,TRUE,FALSE)","v":false},null,{"$f":"'VNOS PODATKOV'!C92","v":"NOVOGRADNJA - PRIZIDAVA"}]
[{"$f":"IF('VNOS PODATKOV'!D93=TRUE,TRUE,FALSE)","v":false},null,{"$f":"'VNOS PODATKOV'!C93","v":"REKONSTRUKCIJA"}]
[true,null,{"$f":"'VNOS PODATKOV'!C94","v":"SPREMEMBA NAMEMBNOSTI"}]
[{"$f":"IF('VNOS PODATKOV'!D95=TRUE,TRUE,FALSE)","v":false},null,{"$f":"'VNOS PODATKOV'!C95","v":"LEGALIZACIJA"}]
[null,null,{"$f":"IFERROR(INDEX('VNOS PODATKOV'!$C$116:$D$124,MATCH(ROW()-ROW(C$38),'VNOS PODATKOV'!$E$116:$E$124,0),1),\"\")","v":""}]
[false,null,{"$f":"'VNOS PODATKOV'!C100","v":"objekt z vplivi na okolje"}]
[]
["PROJEKTNA DOKUMENTACIJA"]
["podatki se vpišejo, če dokumentacijo izdela projektant"]
[{"$f":"'VNOS PODATKOV'!C68","v":"vrsta projektne dokumentacije"},null,{"$f":"'VNOS PODATKOV'!D68","v":"DSN (dokumentacija za pridobitev gradbenega dovoljenja za spremembo namembnosti)"}]
[{"$f":"'VNOS PODATKOV'!C69","v":"številka projekta"},null,{"$f":"'VNOS PODATKOV'!D69","v":0}]
[{"$f":"'VNOS PODATKOV'!C70","v":"datum izdelave"},null,{"$f":"'VNOS PODATKOV'!D70","v":0}]
[{"$f":"'VNOS PODATKOV'!C50","v":"projektant (naziv družbe)"},null,{"$f":"'VNOS PODATKOV'!D50","v":0}]
[]
[null,null,"Na podlagi navedenih podatkov vas prosim za določitev projektnih pogojev \nv skladu z vašimi pristojnostmi."]
[]
["datum",null,"podpis vložnika"]
[{"$f":"TODAY()","v":"2023-03-24"}]
[]
[]
["PRILOGE"]
["ustrezno označiti"]
[null,false,"Pooblastilo (če zahteve ne vlaga investitor)"]
[null,false,"Projektna dokumentacija za pridobitev projektnih in drugih pogojev (DPP)"]
[null,false,"Dokumentacija za pridobitev gradbenega dovoljenja za nezahtevne objekte (DNZO)"]
[null,false,"Dokumentacija za pridobitev gradbenega dovoljenja za spremembo namembnosti (DSN)"]
[null,false,"Druge priloge (navesti, katere):"]

{"sheet":"9A MNENJA VLOGA","index":4,"n_rows":108,"n_cols":3,"rows_kept":108,"cut":false,"hidden":false,"merged":[[54,0,54,2],[1,0,1,2],[3,0,3,2],[17,0,17,2],[30,0,30,2],[40,0,40,2],[61,0,61,2],[66,0,66,2],[72,0,72,2],[77,0,77,2],[98,0,98,2]]}
["PRILOGA 9A"]
["ZAHTEVA ZA IZDAJO MNENJA"]
[]
[{"$f":"'VNOS PODATKOV'!C22","v":"INVESTITOR"}]
[{"$f":"'VNOS PODATKOV'!C23","v":"INVESTITOR 1"}]
[{"$f":"'VNOS PODATKOV'!C24","v":"ime in priimek ali naziv družbe"},null,{"$f":"'VNOS PODATKOV'!D24","v":0}]
[{"$f":"'VNOS PODATKOV'!C25","v":"naslov ali sedež družbe"},null,{"$f":"'VNOS PODATKOV'!D25","v":0}]
[{"$f":"'VNOS PODATKOV'!C26","v":"davčna številka"},null,{"$f":"'VNOS PODATKOV'!D26","v":0}]
[{"$f":"'VNOS PODATKOV'!C27","v":"INVESTITOR 2"}]
[{"$f":"'VNOS PODATKOV'!C28","v":"ime in priimek ali naziv družbe"},null,{"$f":"'VNOS PODATKOV'!D28","v":0}]
[{"$f":"'VNOS PODATKOV'!C29","v":"naslov ali sedež družbe"},null,{"$f":"'VNOS PODATKOV'!D29","v":0}]
[{"$f":"'VNOS PODATKOV'!C30","v":"davčna številka"},null,{"$f":"'VNOS PODATKOV'!D30","v":0}]
[{"$f":"'VNOS PODATKOV'!C31","v":"INVESTITOR 3"}]
[{"$f":"'VNOS PODATKOV'!C32","v":"ime in priimek ali naziv družbe"},null,{"$f":"'VNOS PODATKOV'!D32","v":0}]
[{"$f":"'VNOS PODATKOV'!C33","v":"naslov ali sedež družbe"},null,{"$f":"'VNOS PODATKOV'!D33","v":0}]
[{"$f":"'VNOS PODATKOV'!C34","v":"davčna številka"},null,{"$f":"'VNOS PODATKOV'!D34","v":0}]
[]
[{"$f":"'VNOS PODATKOV'!C35","v":"KONTAKTNA OSEBA"}]
[{"$f":"'VNOS PODATKOV'!C36","v":"ime in priimek"},null,{"$f":"'VNOS PODATKOV'!D36","v":0}]
[{"$f":"'VNOS PODATKOV'!C37","v":"telefonska številka"},null,{"$f":"'VNOS PODATKOV'!D37","v":0}]
[{"$f":"'VNOS PODATKOV'!C38","v":"elektronski naslov"},null,{"$f":"'VNOS PODATKOV'!D38","v":0}]
[]
[{"$f":"'VNOS PODATKOV'!C39","v":"POOBLAŠČENEC"}]
[{"$f":"'VNOS PODATKOV'!C40","v":"podatki se vpišejo, kadar je imenovan pooblaščenec"}]
[{"$f":"'VNOS PODATKOV'!C42","v":"ime in priimek ali naziv družbe"},null,{"$f":"IF('VNOS PODATKOV'!D$41=TRUE,'VNOS PODATKOV'!D42, \"\")","v":""}]
[{"$f":"'VNOS PODATKOV'!C43","v":"naslov ali sedež družbe"},null,{"$f":"IF('VNOS PODATKOV'!D$41=TRUE,'VNOS PODATKOV'!D43, \"\")","v":""}]
[{"$f":"'VNOS PODATKOV'!C44","v":"kontaktna oseba"},null,{"$f":"IF('VNOS PODATKOV'!D$41=TRUE,'VNOS PODATKOV'!D44, \"\")","v":""}]
[{"$f":"'VNOS PODATKOV'!C45","v":"telefonska številka"},null,{"$f":"IF('VNOS PODATKOV'!D$41=TRUE,'VNOS PODATKOV'!D45, \"\")","v":""}]
[{"$f":"'VNOS PODATKOV'!C46","v":"elektronski naslov"},null,{"$f":"IF('VNOS PODATKOV'!D$41=TRUE,'VNOS PODATKOV'!D46, \"\")","v":""}]
[]
["NAVEDBA ORGANA, PRI KATEREM SE VLAGA ZAHTEVA"]
["naziv"]
["naslov"]
["naziv mnenja"]
[]
["PRIDOBLJENI PROJEKTNI POGOJI"]
["vpišejo se podatki o projektnih pogojih, če so bili pridobljeni"]
["številka projektnih pogojev"]
["datum projektnih pogojev"]
[]
["PODATKI O GRADNJI"]
[{"$f":"'VNOS PODATKOV'!C74","v":"naziv gradnje"},null,{"$f":"'VNOS PODATKOV'!D74","v":0}]
[{"$f":"'VNOS PODATKOV'!C76","v":"kratek opis gradnje"},null,{"$f":"'VNOS PODATKOV'!D76","v":0}]
[{"$f":"'VNOS PODATKOV'!C89","v":"VRSTE GRADNJE"},null,{"$f":"IFERROR(INDEX('VNOS PODATKOV'!$C$116:$D$124,MATCH(ROW()-ROW(#REF!),'VNOS PODATKOV'!$E$116:$E$124,0),1),\"\")","v":""}]
["navesti vse ustrezne vrste gradnje"]
[{"$f":"IF('VNOS PODATKOV'!D91=TRUE,TRUE,FALSE)","v":false},{"$f":"IF('VNOS PODATKOV'!D91=TRUE,TRUE,FALSE)","v":false},{"$f":"'VNOS PODATKOV'!C91","v":"NOVOGRADNJA - NOVOZGRAJEN OBJEKT"}]
[{"$f":"IF('VNOS PODATKOV'!D92=TRUE,TRUE,FALSE)","v":false},{"$f":"IF('VNOS PODATKOV'!D92=TRUE,TRUE,FALSE)","v":false},{"$f":"'VNOS PODATKOV'!C92","v":"NOVOGRADNJA - PRIZIDAVA"}]
[{"$f":"IF('VNOS PODATKOV'!D93=TRUE,TRUE,FALSE)","v":false},{"$f":"IF('VNOS PODATKOV'!D93=TRUE,TRUE,FALSE)","v":false},{"$f":"'VNOS PODATKOV'!C93","v":"REKONSTRUKCIJA"}]
[{"$f":"IF('VNOS PODATKOV'!D94=TRUE,TRUE,FALSE)","v":false},{"$f":"IF('VNOS PODATKOV'!D94=TRUE,TRUE,FALSE)","v":false},{"$f":"'VNOS PODATKOV'!C94","v":"SPREMEMBA NAMEMBNOSTI"}]
[{"$f":"IF('VNOS PODATKOV'!D95=TRUE,TRUE,FALSE)","v":false},{"$f":"IF('VNOS PODATKOV'!D95=TRUE,TRUE,FALSE)","v":false},{"$f":"'VNOS PODATKOV'!C95","v":"LEGALIZACIJA"}]
[null,null,{"$f":"IFERROR(INDEX('VNOS PODATKOV'!$C$116:$D$124,MATCH(ROW()-ROW(C$44),'VNOS PODATKOV'!$E$116:$E$124,0),1),\"\")","v":""}]
[true,{"$f":"IF('VNOS PODATKOV'!D100=TRUE,TRUE,FALSE)","v":false},{"$f":"'VNOS PODATKOV'!C100","v":"objekt z vplivi na okolje"}]
[{"$f":"IF('VNOS PODATKOV'!D106=TRUE,TRUE,FALSE)","v":false},{"$f":"IF('VNOS PODATKOV'!D106=TRUE,TRUE,FALSE)","v":false},{"$f":"'VNOS PODATKOV'!C106","v":"predhodna presoja vplivov na okolje"}]
[]
["PODATKI O PROJEKTNI DOKUMENTACIJI"]
[{"$f":"'VNOS PODATKOV'!C86","v":"izpolniti, če gre za spremembo gradbenega dovoljenja"}]
["vrsta dokumentacije",null,{"$f":"'VNOS PODATKOV'!D68","v":"DSN (dokumentacija za pridobitev gradbenega dovoljenja za spremembo namembnosti)"}]
["številka projekta",null,{"$f":"'VNOS PODATKOV'!D69","v":0}]
["datum izdelave",null,{"$f":"'VNOS PODATKOV'!D70","v":"00:00:00"}]
["projektant (naziv družbe)",null,{"$f":"'VNOS PODATKOV'!D50","v":0}]
[]
["PREDHODNA PRESOJA VPLIVOV NA OKOLJE"]
["podatki se vpišejo, če gre za objekt z vplivi na okolje in če je bil izveden predhodni postopek v skladu z zakonom, ki ureja varstvo okolja"]
["številka sklepa"]
["datum sklepa"]
[]
["POROČILO O VPLIVIH NA OKOLJE (PVO)"]
["podatki se vpišejo, kadar gre za objekt z vplivi na okolje"]
["številka poročila"]
["datum izdelave poročila"]
["izdelovalec poročila"]
[]
["PODATKI O VODNI PRAVICI"]
["navedejo se podatki o vodni pravici, če je bila pridobljena"]
["številka "]
["datum izdaje"]
[]
["PODATKI O DOVOLJENJU ZA RAZISKAVO PODZEMNIH VODA"]
["navedejo se podatki o dovoljenju za raziskavo podzemnih voda, če je bilo pridobljeno"]
["številka "]
["datum izdaje"]
[]
["PODATKI O VODNIH ZEMLJIŠČIH ZARADI USTANOVITEV STVARNE SLUŽNOSTI"]
["podatki se navedejo, če se poseg načrtuje na vodnih ali priobalnih zemljiščih v lasti države"]
["katastrska občina"]
["številka katastrske občine"]
["parc. št."]
["služnostni upravičenec"]
["matična številka"]
["davčna številka"]
["zakoniti zastopnik"]
[]
[null,null,"Na podlagi navedenih podatkov vas prosim za mnenje, ali je priložena dokumentacija skladna s predpisi iz vaše pristojnosti, ter za določitev morebitnih pogojev za izvedbo gradnje in uporabo objekta."]
[]
["datum",null,"podpis vložnika"]
[{"$f":"TODAY()","v":"2023-03-24"}]
[]
[]
["PRILOGE"]
["ustrezno označiti"]
[null,false,"Pooblastilo (če zahteve ne vlaga investitor)"]
[null,false,"Projektna dokumentacija za pridobitev mnenj in gradbenega dovoljenja - DGD (če gre za zahteven ali manj zahteven objekt)"]
[null,false,"Dokumentacija za pridobitev gradbenega dovoljenja za nezahtevne objekte - DNZO"]
[null,false,"Dokumentacija za pridobitev gradbenega dovoljenja za spremembo namembnosti - DSN"]
[null,false,"Dokumentacija za legalizacijo - DL"]
[null,false,"Poročilo o vplivih na okolje (če gre za objekt z vplivi na okolje)"]
[null,false,"Priloga 1 Vloge za izdajo vodnega soglasja, določene na spletni strani Direkcije RS za vode, \nče se poseg načrtuje na vodnih ali priobalnih zemljiščih v lasti države"]
[null,false,"Druge priloge (navesti, katere):"]

{"sheet":"11C - GD SN ZAHTEVA","index":5,"n_rows":131,"n_cols":3,"rows_kept":131,"cut":false,"hidden":false,"merged":[[125,0,125,2],[115,0,115,2],[57,0,57,2],[59,0,59,2],[1,0,1,2],[43,0,43,2],[28,0,28,1],[29,0,29,1],[48,0,48,2]]}
["PRILOGA 11C"]
["ZAHTEVA ZA IZDAJO \nGRADBENEGA DOVOLJENJA \nZA SPREMEMBO NAMEMBNOSTI"]
[]
["INVESTITOR"]
["INVESTITOR 1"]
["ime in priimek ali naziv družbe",null,{"$f":"'VNOS PODATKOV'!D24","v":0}]
["naslov ali sedež družbe",null,{"$f":"'VNOS PODATKOV'!D25","v":0}]
["INVESTITOR 2"]
["ime in priimek ali naziv družbe",null,{"$f":"'VNOS PODATKOV'!D28","v":0}]
["naslov ali sedež družbe",null,{"$f":"'VNOS PODATKOV'!D29","v":0}]
["INVESTITOR 3"]
["ime in priimek ali naziv družbe",null,{"$f":"'VNOS PODATKOV'!D32","v":0}]
["naslov ali sedež družbe",null,{"$f":"'VNOS PODATKOV'!D33","v":0}]
[]
[{"$f":"'VNOS PODATKOV'!C35","v":"KONTAKTNA OSEBA"}]
[{"$f":"'VNOS PODATKOV'!C36","v":"ime in priimek"},null,{"$f":"'VNOS PODATKOV'!D36","v":0}]
[{"$f":"'VNOS PODATKOV'!C37","v":"telefonska številka"},null,{"$f":"'VNOS PODATKOV'!D37","v":0}]
[{"$f":"'VNOS PODATKOV'!C38","v":"elektronski naslov"},null,{"$f":"'VNOS PODATKOV'!D38","v":0}]
[]
["POOBLAŠČENEC"]
[{"$f":"'VNOS PODATKOV'!C40","v":"podatki se vpišejo, kadar je imenovan pooblaščenec"}]
[{"$f":"'VNOS PODATKOV'!C42","v":"ime in priimek ali naziv družbe"},null,{"$f":"IF('VNOS PODATKOV'!D$41=TRUE,'VNOS PODATKOV'!D42, \"\")","v":""}]
[{"$f":"'VNOS PODATKOV'!C43","v":"naslov ali sedež družbe"},null,{"$f":"IF('VNOS PODATKOV'!D$41=TRUE,'VNOS PODATKOV'!D43, \"\")","v":""}]
[{"$f":"'VNOS PODATKOV'!C44","v":"kontaktna oseba"},null,{"$f":"IF('VNOS PODATKOV'!D$41=TRUE,'VNOS PODATKOV'!D44, \"\")","v":""}]
[{"$f":"'VNOS PODATKOV'!C45","v":"telefonska številka"},null,{"$f":"IF('VNOS PODATKOV'!D$41=TRUE,'VNOS PODATKOV'!D45, \"\")","v":""}]
[{"$f":"'VNOS PODATKOV'!C46","v":"elektronski naslov"},null,{"$f":"IF('VNOS PODATKOV'!D$41=TRUE,'VNOS PODATKOV'!D46, \"\")","v":""}]
[]
["NAVEDBA ORGANA, PRI KATEREM SE VLAGA ZAHTEVA"]
["naziv",null,{"$f":"'VNOS PODATKOV'!D193","v":0}]
["naslov",null,{"$f":"'VNOS PODATKOV'!D194","v":0}]
[]
["PODATKI O OBJEKTU"]
["naslov stavbe",null,{"$f":"'VNOS PODATKOV'!D111","v":0}]
["identifikacijska oznaka stavbe",null,{"$f":"'VNOS PODATKOV'!D112","v":0}]
["identifikacijska oznaka dela stavbe",null,{"$f":"'VNOS PODATKOV'!D113","v":0}]
[]
["DOVOLJENJA ZA OBSTOJEČI OBJEKT"]
[{"$f":"'VNOS PODATKOV'!C110","v":"podatek se vpiše, če se gradnja nanaša na obstoječ objekt (rekonstrukcija, odstranitev, sprememba namembnosti, novogradnja - prizidava)"}]
[{"$f":"IF('VNOS PODATKOV'!D114=TRUE,TRUE,FALSE)","v":false},{"$f":"IF('VNOS PODATKOV'!D114=TRUE,TRUE,FALSE)","v":false},{"$f":"'VNOS PODATKOV'!C114","v":"objekt, zgrajen pred 31. 12. 1967"}]
[{"$f":"'VNOS PODATKOV'!C115","v":"navedba upravnega organa, ki je izdal odločbo"},null,{"$f":"'VNOS PODATKOV'!D115","v":0}]
[{"$f":"'VNOS PODATKOV'!C116","v":"številka GD ali odločbe o legalizaciji ali odločbe o objektu daljšega obstoja"},null,{"$f":"'VNOS PODATKOV'!D116","v":0}]
[{"$f":"'VNOS PODATKOV'!C117","v":"datum odločbe"},null,{"$f":"'VNOS PODATKOV'!D117","v":"00:00:00"}]
[]
["ZEMLJIŠČA ZA GRADNJO"]
["številka katastrske občine"]
["katastrska občina"]
["parc. št."]
[]
["PODATKI ZA IZRAČUN UPRAVNE TAKSE"]
["ocenjena vrednost del v zvezi s spremembo namembnosti objekta v EUR brez DDV",null,{"$f":"'VNOS PODATKOV'!D198","v":0}]
[]
[null,null,"Na podlagi navedenih podatkov in priloženega projekta ter ostalih priloženih listin vas prosim za izdajo gradbenega dovoljenja."]
[]
["datum",null,"podpis vložnika"]
[{"$f":"TODAY()","v":"2023-03-24"}]
[]
[]
["PRILOGE"]
["ustrezno označiti"]
["MNENJE ALI DOKAZILO DA JE BILA ZAHTEVA ZA MNEJE PODANA, ČE MNENJE NI BILO IZDANO"]
[null,null,"OBČINA"]
[null,{"$f":"IF('VNOS PODATKOV'!B127=TRUE,TRUE,FALSE)","v":false},{"$f":"'VNOS PODATKOV'!D127","v":"SKLADNOST S PROSTORSKIMI AKTI"}]
[null,null,"VAROVANA OBMOČJA"]
[null,{"$f":"IF('VNOS PODATKOV'!B131=TRUE,TRUE,FALSE)","v":false},{"$f":"'VNOS PODATKOV'!D131","v":"KULTUROVARSTVENO MNENJE ZA POSEG"}]
[null,{"$f":"IF('VNOS PODATKOV'!B132=TRUE,TRUE,FALSE)","v":false},{"$f":"'VNOS PODATKOV'!D132","v":"KULTURNOVARSTVENO MNENJE ZA RAZISKAVO IN ODSTRANITEV"}]
[null,{"$f":"IF('VNOS PODATKOV'!B133=TRUE,TRUE,FALSE)","v":false},{"$f":"'VNOS PODATKOV'!D133","v":"NARAVOVARSTVENO MNENJE"}]
[null,{"$f":"IF('VNOS PODATKOV'!B134=TRUE,TRUE,FALSE)","v":false},{"$f":"'VNOS PODATKOV'!D134","v":"MNENJE ZA POSEG V JAME"}]
[null,{"$f":"IF('VNOS PODATKOV'!B135=TRUE,TRUE,FALSE)","v":false},{"$f":"'VNOS PODATKOV'!D135","v":"VODNO MNENJE"}]
[null,{"$f":"IF('VNOS PODATKOV'!B136=TRUE,TRUE,FALSE)","v":false},{"$f":"'VNOS PODATKOV'!D136","v":"MNENJE ZA GRADNJO V GOZDNEM PROSTORU"}]
[null,{"$f":"IF('VNOS PODATKOV'!B137=TRUE,TRUE,FALSE)","v":false},{"$f":"'VNOS PODATKOV'!D137","v":"MNENJE ZA GRADNJO IN DRUGE POSEGE NA OBMOČJU RIBIŠKEGA OKOLIŠA"}]
[null,{"$f":"IF('VNOS PODATKOV'!B138=TRUE,TRUE,FALSE)","v":false},{"$f":"'VNOS PODATKOV'!D138","v":"MNENJE ZA POSEGE V OKOLJE DIVJADI"}]
[null,{"$f":"IF('VNOS PODATKOV'!B139=TRUE,TRUE,FALSE)","v":false},{"$f":"'VNOS PODATKOV'!D139","v":"MNENJE ZA GRADNJO NA OBMOČJU MEJNEGA PREHODA"}]
[null,{"$f":"IF('VNOS PODATKOV'!B140=TRUE,TRUE,FALSE)","v":false},{"$f":"'VNOS PODATKOV'!D140","v":"MNENJE ZA GRADNJO OBJEKTOV V PROSTI CONI CARINSKEGA OBMOČJA UNIJE"}]
[null,{"$f":"IF('VNOS PODATKOV'!B146=TRUE,TRUE,FALSE)","v":false},{"$f":"'VNOS PODATKOV'!C146","v":"DRUGO (NAVEDI)"}]
[null,{"$f":"IF('VNOS PODATKOV'!B147=TRUE,TRUE,FALSE)","v":false},{"$f":"'VNOS PODATKOV'!C147","v":"DRUGO (NAVEDI)"}]
[null,{"$f":"IF('VNOS PODATKOV'!B148=TRUE,TRUE,FALSE)","v":false},{"$f":"'VNOS PODATKOV'!C148","v":"DRUGO (NAVEDI)"}]
[null,null,"VAROVALNI PASOVI INFRASTRUKTURE"]
[null,{"$f":"IF('VNOS PODATKOV'!B152=TRUE,TRUE,FALSE)","v":false},"VODOVOD"]
[null,{"$f":"IF('VNOS PODATKOV'!B153=TRUE,TRUE,FALSE)","v":false},"ELEKTRIKA"]
[null,{"$f":"IF('VNOS PODATKOV'!B154=TRUE,TRUE,FALSE)","v":false},"PLIN"]
[null,{"$f":"IF('VNOS PODATKOV'!B155=TRUE,TRUE,FALSE)","v":false},"TOPLOVOD"]
[null,{"$f":"IF('VNOS PODATKOV'!B156=TRUE,TRUE,FALSE)","v":false},"FEKALNE VODE"]
[null,{"$f":"IF('VNOS PODATKOV'!B157=TRUE,TRUE,FALSE)","v":false},"METEORNE VODE"]
[null,{"$f":"IF('VNOS PODATKOV'!B158=TRUE,TRUE,FALSE)","v":false},"KOMUNIKACIJSKI VODI"]
[null,{"$f":"IF('VNOS PODATKOV'!B159=TRUE,TRUE,FALSE)","v":false},"JAVNE CESTE"]
[null,{"$f":"IF('VNOS PODATKOV'!B160=TRUE,TRUE,FALSE)","v":false},"ŽELEZNICE, PRAGOVNI PAS"]
[null,{"$f":"IF('VNOS PODATKOV'!B161=TRUE,TRUE,FALSE)","v":false},"ŽELEZNICE, INTEROPERABILNOST"]
[null,{"$f":"IF('VNOS PODATKOV'!B141=TRUE,TRUE,FALSE)","v":false},"LETALIŠČA"]
[null,{"$f":"IF('VNOS PODATKOV'!B143=TRUE,TRUE,FALSE)","v":false},"VARNOST PLOVBE"]
[null,{"$f":"IF('VNOS PODATKOV'!B144=TRUE,TRUE,FALSE)","v":false},"OBJEKT V MEJAH RUDNIŠKEGA PROSTORA"]
[null,{"$f":"IF('VNOS PODATKOV'!B145=TRUE,TRUE,FALSE)","v":false},"OBJEKT V VAROVALNEM PASU ŽIČNIŠKE NAPRAVE"]
[null,{"$f":"IF('VNOS PODATKOV'!B162=TRUE,TRUE,FALSE)","v":false},{"$f":"'VNOS PODATKOV'!C162","v":"DRUGO (NAVEDI)"}]
[null,{"$f":"IF('VNOS PODATKOV'!B163=TRUE,TRUE,FALSE)","v":false},{"$f":"'VNOS PODATKOV'!C163","v":"DRUGO (NAVEDI)"}]
[null,{"$f":"IF('VNOS PODATKOV'!B164=TRUE,TRUE,FALSE)","v":false},{"$f":"'VNOS PODATKOV'!C164","v":"DRUGO (NAVEDI)"}]
[null,null,"PRIKLJUČEVANJE NA INFRASTRUKTURO"]
[null,{"$f":"IF('VNOS PODATKOV'!B168=TRUE,TRUE,FALSE)","v":false},{"$f":"'VNOS PODATKOV'!C168","v":"VODOVOD"}]
[null,{"$f":"IF('VNOS PODATKOV'!B169=TRUE,TRUE,FALSE)","v":false},{"$f":"'VNOS PODATKOV'!C169","v":"ELEKTRIKA"}]
[null,{"$f":"IF('VNOS PODATKOV'!B170=TRUE,TRUE,FALSE)","v":false},{"$f":"'VNOS PODATKOV'!C170","v":"PLIN"}]
[null,{"$f":"IF('VNOS PODATKOV'!B171=TRUE,TRUE,FALSE)","v":false},{"$f":"'VNOS PODATKOV'!C171","v":"TOPLOVOD"}]
[null,{"$f":"IF('VNOS PODATKOV'!B172=TRUE,TRUE,FALSE)","v":false},{"$f":"'VNOS PODATKOV'!C172","v":"FEKALNE VODE"}]
[null,{"$f":"IF('VNOS PODATKOV'!B173=TRUE,TRUE,FALSE)","v":false},{"$f":"'VNOS PODATKOV'!C173","v":"METEORNE VODE"}]
[null,{"$f":"IF('VNOS PODATKOV'!B174=TRUE,TRUE,FALSE)","v":false},{"$f":"'VNOS PODATKOV'!C174","v":"DOSTOP"}]
[null,{"$f":"IF('VNOS PODATKOV'!B175=TRUE,TRUE,FALSE)","v":false},{"$f":"'VNOS PODATKOV'!C175","v":"KOMUNIKACIJE"}]
[null,{"$f":"IF('VNOS PODATKOV'!B176=TRUE,TRUE,FALSE)","v":false},{"$f":"'VNOS PODATKOV'!C176","v":"DRUGO (NAVEDI)"}]
[null,{"$f":"IF('VNOS PODATKOV'!B177=TRUE,TRUE,FALSE)","v":false},{"$f":"'VNOS PODATKOV'!C177","v":"DRUGO (NAVEDI)"}]
[null,{"$f":"IF('VNOS PODATKOV'!B178=TRUE,TRUE,FALSE)","v":false},{"$f":"'VNOS PODATKOV'!C178","v":"DRUGO (NAVEDI)"}]
[null,null,"DRUGA MNENJA"]
[null,{"$f":"IF('VNOS PODATKOV'!B182=TRUE,TRUE,FALSE)","v":false},"JEDRSKA VARNOST"]
[null,{"$f":"IF('VNOS PODATKOV'!B183=TRUE,TRUE,FALSE)","v":false},"SEVALNA VARNOST"]
[null,{"$f":"IF('VNOS PODATKOV'!B184=TRUE,TRUE,FALSE)","v":false},"KMETIJSKO GOSPODARSTVO"]
[null,{"$f":"IF('VNOS PODATKOV'!B185=TRUE,TRUE,FALSE)","v":false},"VETERINA"]
[null,{"$f":"IF('VNOS PODATKOV'!B186=TRUE,TRUE,FALSE)","v":false},"OBRAMBA"]
[null,{"$f":"IF('VNOS PODATKOV'!B187=TRUE,TRUE,FALSE)","v":false},{"$f":"'VNOS PODATKOV'!C187","v":"DRUGO (NAVEDI)"}]
[null,{"$f":"IF('VNOS PODATKOV'!B188=TRUE,TRUE,FALSE)","v":false},{"$f":"'VNOS PODATKOV'!C188","v":"DRUGO (NAVEDI)"}]
[null,{"$f":"IF('VNOS PODATKOV'!B189=TRUE,TRUE,FALSE)","v":false},{"$f":"'VNOS PODATKOV'!C189","v":"DRUGO (NAVEDI)"}]
["IZKAZOVANJE PRAVICE GRADITI"]
[null,null,"Lastninska ali druga stvarna pravica na nepremičninah, na katerih se bo izvajala gradnja, je vpisana v zemljiški knjigi"]
[null,null,"Iz uradnih evidenc je razvidno, da je investitor zakoniti upravljavec nepremičnine, na kateri se bo izvajala gradnja"]
[null,null,"Pravico graditi izkazujem z listinami:"]
[null,null,"Notarsko overjena pogodba o pridobitvi lastninske ali druge stvarne pravice na nepremičninah, na katerih se bo izvajala gradnja, ki je predlagana za vpis v zemljiško knjigo"]
[null,null,"Sodna ali upravna odločba, ki investitorju omogoča gradnjo oziroma izvajanje del"]
[null,null,"Sklep o določitvi investitorja kot upravljavca nepremičnine, če gre za nepremičnino v lasti njegovega ustanovitelja"]
[null,null,"Druga listina, ki v skladu z zakonom investitorju omogoča gradnjo oziroma izvajanje del"]
[null,null,"Soglasje upravljavca javne ceste za izvedbo gradnje v cestnem telesu, če gre za gradnjo objekta gospodarske javne infrastrukture, skupaj s priključki, ki se izvaja v cestnem telesu javne ceste"]
[null,null,"Notarsko overjena pogodba o pridobitvi obligacijske pravice za nepremičnine, na katerih so predvidene začasne ureditve za potrebe gradnje"]
["OSTALE PRILOGE"]
[null,false,"Pooblastilo (če zahteve ne vlaga investitor)"]
[null,null,"Dokumentacija za pridobitev gradbenega dovoljenja za spremembo namembnosti (DSN)"]
[null,null,"Pisne izjave strank, da se strinjajo z nameravano gradnjo, če so pridobljene"]
[null,null,"Dokazilo o obstoju objekta pred 31. 12. 1967"]
[null,null,"Druge priloge (navesti, katere):"]

{"sheet":"12 GD SPREM","index":6,"n_rows":167,"n_cols":6,"rows_kept":167,"cut":false,"hidden":false,"merged":[[78,0,78,5],[1,0,1,2],[3,0,3,2],[45,0,45,5],[46,2,46,5],[47,2,47,5],[52,0,52,5],[53,0,53,5],[71,0,71,5],[31,0,31,1],[32,0,32,1],[135,2,135,5],[136,2,136,5],[137,2,137,5],[138,2,138,5],[139,2,139,5],[140,2,140,5],[141,2,141,5],[142,2,142,5],[143,2,143,5],[145,0,145,5],[149,2,149,5],[167,2,167,5],[168,2,168,5],[155,0,155,5],[161,2,161,5],[163,2,163,5],[164,2,164,5],[165,2,165,5],[166,2,166,5]]}
["PRILOGA 12"]
["ZAHTEVA ZA SPREMEMBO \nGRADBENEGA DOVOLJENJA"]
[]
[{"$f":"'VNOS PODATKOV'!C22","v":"INVESTITOR"}]
[{"$f":"'VNOS PODATKOV'!C23","v":"INVESTITOR 1"}]
[{"$f":"'VNOS PODATKOV'!C24","v":"ime in priimek ali naziv družbe"},null,{"$f":"'VNOS PODATKOV'!D24","v":0}]
[{"$f":"'VNOS PODATKOV'!C25","v":"naslov ali sedež družbe"},null,{"$f":"'VNOS PODATKOV'!D25","v":0}]
[{"$f":"'VNOS PODATKOV'!C26","v":"davčna številka"},null,{"$f":"'VNOS PODATKOV'!D26","v":0}]
[{"$f":"'VNOS PODATKOV'!C27","v":"INVESTITOR 2"}]
[{"$f":"'VNOS PODATKOV'!C28","v":"ime in priimek ali naziv družbe"},null,{"$f":"'VNOS PODATKOV'!D28","v":0}]
[{"$f":"'VNOS PODATKOV'!C29","v":"naslov ali sedež družbe"},null,{"$f":"'VNOS PODATKOV'!D29","v":0}]
[{"$f":"'VNOS PODATKOV'!C30","v":"davčna številka"},null,{"$f":"'VNOS PODATKOV'!D30","v":0}]
[{"$f":"'VNOS PODATKOV'!C31","v":"INVESTITOR 3"}]
[{"$f":"'VNOS PODATKOV'!C32","v":"ime in priimek ali naziv družbe"},null,{"$f":"'VNOS PODATKOV'!D32","v":0}]
[{"$f":"'VNOS PODATKOV'!C33","v":"naslov ali sedež družbe"},null,{"$f":"'VNOS PODATKOV'!D33","v":0}]
[{"$f":"'VNOS PODATKOV'!C34","v":"davčna številka"},null,{"$f":"'VNOS PODATKOV'!D34","v":0}]
[]
[{"$f":"'VNOS PODATKOV'!C35","v":"KONTAKTNA OSEBA"}]
[{"$f":"'VNOS PODATKOV'!C36","v":"ime in priimek"},null,{"$f":"'VNOS PODATKOV'!D36","v":0}]
[{"$f":"'VNOS PODATKOV'!C37","v":"telefonska številka"},null,{"$f":"'VNOS PODATKOV'!D37","v":0}]
[{"$f":"'VNOS PODATKOV'!C38","v":"elektronski naslov"},null,{"$f":"'VNOS PODATKOV'!D38","v":0}]
[]
[{"$f":"'VNOS PODATKOV'!C39","v":"POOBLAŠČENEC"}]
[{"$f":"'VNOS PODATKOV'!C40","v":"podatki se vpišejo, kadar je imenovan pooblaščenec"}]
[{"$f":"'VNOS PODATKOV'!C42","v":"ime in priimek ali naziv družbe"},null,{"$f":"IF('VNOS PODATKOV'!D$41=TRUE,'VNOS PODATKOV'!D42, \"\")","v":""}]
[{"$f":"'VNOS PODATKOV'!C43","v":"naslov ali sedež družbe"},null,{"$f":"IF('VNOS PODATKOV'!D$41=TRUE,'VNOS PODATKOV'!D43, \"\")","v":""}]
[{"$f":"'VNOS PODATKOV'!C44","v":"kontaktna oseba"},null,{"$f":"IF('VNOS PODATKOV'!D$41=TRUE,'VNOS PODATKOV'!D44, \"\")","v":""}]
[{"$f":"'VNOS PODATKOV'!C45","v":"telefonska številka"},null,{"$f":"IF('VNOS PODATKOV'!D$41=TRUE,'VNOS PODATKOV'!D45, \"\")","v":""}]
[{"$f":"'VNOS PODATKOV'!C46","v":"elektronski naslov"},null,{"$f":"IF('VNOS PODATKOV'!D$41=TRUE,'VNOS PODATKOV'!D46, \"\")","v":""}]
[]
["NAVEDBA ORGANA, PRI KATEREM SE VLAGA ZAHTEVA"]
["naziv",null,{"$f":"'VNOS PODATKOV'!D193","v":0}]
["naslov",null,{"$f":"'VNOS PODATKOV'!D194","v":0}]
[]
[{"$f":"'VNOS PODATKOV'!C199","v":"PODATKI O IZDANEM GRADBENEM DOVOLJENJU"}]
[{"$f":"'VNOS PODATKOV'!C201","v":"navedba organa"},null,{"$f":"'VNOS PODATKOV'!D201","v":0}]
[{"$f":"'VNOS PODATKOV'!C202","v":"številka dovoljenja"},null,{"$f":"'VNOS PODATKOV'!D202","v":0}]
[{"$f":"'VNOS PODATKOV'!C203","v":"datum dovoljenja"},null,{"$f":"'VNOS PODATKOV'!D203","v":"00:00:00"}]
[{"$f":"'VNOS PODATKOV'!C205","v":"pravnomočnost"},null,{"$f":"'VNOS PODATKOV'!D205","v":"00:00:00"}]
[]
[{"$f":"'VNOS PODATKOV'!C206","v":"PODATKI O SPREMEMBI GRADBENEGA DOVOLJENJA"}]
[{"$f":"'VNOS PODATKOV'!C208","v":"navedba organa"},null,{"$f":"'VNOS PODATKOV'!D208","v":0}]
[{"$f":"'VNOS PODATKOV'!C209","v":"številka dovoljenja"},null,{"$f":"'VNOS PODATKOV'!D209","v":0}]
[{"$f":"'VNOS PODATKOV'!C210","v":"datum dovoljenja"},null,{"$f":"'VNOS PODATKOV'!D210","v":"00:00:00"}]
[{"$f":"'VNOS PODATKOV'!C212","v":"pravnomočnost"},null,{"$f":"'VNOS PODATKOV'!D212","v":"00:00:00"}]
[{"$f":"'VNOS PODATKOV'!C71","v":"PODATKI O GRADNJI"}]
[{"$f":"'VNOS PODATKOV'!C74","v":"naziv gradnje"},null,{"$f":"'VNOS PODATKOV'!D74","v":0}]
["vsebina zahteve oz. opis, na kaj se spremembe nanašajo"]
[false,null,{"$f":"'VNOS PODATKOV'!C100","v":"objekt z vplivi na okolje"}]
[false,null,{"$f":"'VNOS PODATKOV'!C106","v":"predhodna presoja vplivov na okolje"}]
[{"$f":"IF('VNOS PODATKOV'!D96=TRUE,TRUE,FALSE)","v":false},true,{"$f":"'VNOS PODATKOV'!C96","v":"vloga se nanaša samo na nezahtevni objekt"}]
[]
["ZEMLJIŠČA ZA GRADNJO",true]
["podatki se vpišejo, če se zaradi spremembe DGD posega na druga zemljišča\n"]
["številka katastrske občine"]
["katastrska občina"]
["parc. št."]
[]
["PODATKI O PROJEKTNI DOKUMENTACIJI ZA SPREMEMBO GRADBENEGA DOVOLJENJA"]
[{"$f":"'VNOS PODATKOV'!C66","v":"podatki se vpišejo, če dokumentacijo izdela projektant"}]
["vrsta dokumentacije",null,{"$f":"'VNOS PODATKOV'!D68","v":"DSN (dokumentacija za pridobitev gradbenega dovoljenja za spremembo namembnosti)"}]
[{"$f":"'VNOS PODATKOV'!C69","v":"številka projekta"},null,{"$f":"'VNOS PODATKOV'!D69","v":0}]
[{"$f":"'VNOS PODATKOV'!C70","v":"datum izdelave"},null,{"$f":"'VNOS PODATKOV'!D70","v":"00:00:00"}]
[{"$f":"'VNOS PODATKOV'!C50","v":"projektant (naziv družbe)"},null,{"$f":"'VNOS PODATKOV'!D50","v":0}]
[{"$f":"'VNOS PODATKOV'!C51","v":"naslov"},null,{"$f":"'VNOS PODATKOV'!D51","v":0}]
[]
["PREDHODNA PRESOJA VPLIVOV NA OKOLJE"]
["podatki se vpišejo, če gre za objekt z vplivi na okolje in če je bil izveden predhodni postopek v skladu z zakonom, ki ureja varstvo okolja"]
["številka sklepa"]
["datum sklepa"]
[]
["POROČILO O VPLIVIH NA OKOLJE (PVO)"]
["podatki se vpišejo, kadar gre za objekt z vplivi na okolje"]
["številka poročila"]
["datum izdelave poročila"]
["izdelovalec poročila"]
[]
["MNENJA"]
["vpišejo se podatki za vsa pridobljena mnenja k spremembi DGD, če spremembe vplivajo na že pridobljena mnenja\n"]
[null,null,{"$f":"'VNOS PODATKOV'!E130","v":"navedba mnenjedajalca"},{"$f":"'VNOS PODATKOV'!I126","v":"datum podaje zahtevka za mnenje"},{"$f":"'VNOS PODATKOV'!J130","v":"številka mnenja"},{"$f":"'VNOS PODATKOV'!K130","v":"datum mnenja"}]
[{"$f":"'VNOS PODATKOV'!C124","v":"SKLADNOST S PROSTORSKIMI AKTI"}]
["OBČINA",null,{"$f":"'VNOS PODATKOV'!E127","v":0},null,{"$f":"'VNOS PODATKOV'!J127","v":0},{"$f":"'VNOS PODATKOV'!K127","v":"00:00:00"}]
[{"$f":"'VNOS PODATKOV'!C128","v":"VAROVANA, VARSTVENA IN OGROŽENA OBMOČJA, VODNA IN PRIOBALNA ZEMLJIŠČA"}]
[{"$f":"IFERROR(INDEX('VNOS PODATKOV'!$C$131:$K$148,MATCH(ROW()-ROW(A$83),'VNOS PODATKOV'!$L$131:$L$148,0),1),\"\")","v":""},null,{"$f":"IFERROR(INDEX('VNOS PODATKOV'!$C$131:$K$148,MATCH(ROW()-ROW(A$83),'VNOS PODATKOV'!$L$131:$L$148,0),3),\"\")","v":""},{"$f":"IFERROR(INDEX('VNOS PODATKOV'!$C$131:$K$148,MATCH(ROW()-ROW(A$83),'VNOS PODATKOV'!$L$131:$L$148,0),7),\"\")","v":""},{"$f":"IFERROR(INDEX('VNOS PODATKOV'!$C$131:$K$148,MATCH(ROW()-ROW(A$83),'VNOS PODATKOV'!$L$131:$L$148,0),8),\"\")","v":""},{"$f":"IFERROR(INDEX('VNOS PODATKOV'!$C$131:$K$148,MATCH(ROW()-ROW(B$83),'VNOS PODATKOV'!$L$131:$L$148,0),9),\"\")","v":""}]
[{"$f":"IFERROR(INDEX('VNOS PODATKOV'!$C$131:$K$148,MATCH(ROW()-ROW(A$83),'VNOS PODATKOV'!$L$131:$L$148,0),1),\"\")","v":""},null,{"$f":"IFERROR(INDEX('VNOS PODATKOV'!$C$131:$K$148,MATCH(ROW()-ROW(A$83),'VNOS PODATKOV'!$L$131:$L$148,0),3),\"\")","v":""},{"$f":"IFERROR(INDEX('VNOS PODATKOV'!$C$131:$K$148,MATCH(ROW()-ROW(A$83),'VNOS PODATKOV'!$L$131:$L$148,0),7),\"\")","v":""},{"$f":"IFERROR(INDEX('VNOS PODATKOV'!$C$131:$K$148,MATCH(ROW()-ROW(A$83),'VNOS PODATKOV'!$L$131:$L$148,0),8),\"\")","v":""},{"$f":"IFERROR(INDEX('VNOS PODATKOV'!$C$131:$K$148,MATCH(ROW()-ROW(B$83),'VNOS PODATKOV'!$L$131:$L$148,0),9),\"\")","v":""}]
[{"$f":"IFERROR(INDEX('VNOS PODATKOV'!$C$131:$K$148,MATCH(ROW()-ROW(A$83),'VNOS PODATKOV'!$L$131:$L$148,0),1),\"\")","v":""},null,{"$f":"IFERROR(INDEX('VNOS PODATKOV'!$C$131:$K$148,MATCH(ROW()-ROW(A$83),'VNOS PODATKOV'!$L$131:$L$148,0),3),\"\")","v":""},{"$f":"IFERROR(INDEX('VNOS PODATKOV'!$C$131:$K$148,MATCH(ROW()-ROW(A$83),'VNOS PODATKOV'!$L$131:$L$148,0),7),\"\")","v":""},{"$f":"IFERROR(INDEX('VNOS PODATKOV'!$C$131:$K$148,MATCH(ROW()-ROW(A$83),'VNOS PODATKOV'!$L$131:$L$148,0),8),\"\")","v":""},{"$f":"IFERROR(INDEX('VNOS PODATKOV'!$C$131:$K$148,MATCH(ROW()-ROW(B$83),'VNOS PODATKOV'!$L$131:$L$148,0),9),\"\")","v":""}]
[{"$f":"IFERROR(INDEX('VNOS PODATKOV'!$C$131:$K$148,MATCH(ROW()-ROW(A$83),'VNOS PODATKOV'!$L$131:$L$148,0),1),\"\")","v":""},null,{"$f":"IFERROR(INDEX('VNOS PODATKOV'!$C$131:$K$148,MATCH(ROW()-ROW(A$83),'VNOS PODATKOV'!$L$131:$L$148,0),3),\"\")","v":""},{"$f":"IFERROR(INDEX('VNOS PODATKOV'!$C$131:$K$148,MATCH(ROW()-ROW(A$83),'VNOS PODATKOV'!$L$131:$L$148,0),7),\"\")","v":""},{"$f":"IFERROR(INDEX('VNOS PODATKOV'!$C$131:$K$148,MATCH(ROW()-ROW(A$83),'VNOS PODATKOV'!$L$131:$L$148,0),8),\"\")","v":""},{"$f":"IFERROR(INDEX('VNOS PODATKOV'!$C$131:$K$148,MATCH(ROW()-ROW(B$83),'VNOS PODATKOV'!$L$131:$L$148,0),9),\"\")","v":""}]
[{"$f":"IFERROR(INDEX('VNOS PODATKOV'!$C$131:$K$148,MATCH(ROW()-ROW(A$83),'VNOS PODATKOV'!$L$131:$L$148,0),1),\"\")","v":""},null,{"$f":"IFERROR(INDEX('VNOS PODATKOV'!$C$131:$K$148,MATCH(ROW()-ROW(A$83),'VNOS PODATKOV'!$L$131:$L$148,0),3),\"\")","v":""},{"$f":"IFERROR(INDEX('VNOS PODATKOV'!$C$131:$K$148,MATCH(ROW()-ROW(A$83),'VNOS PODATKOV'!$L$131:$L$148,0),7),\"\")","v":""},{"$f":"IFERROR(INDEX('VNOS PODATKOV'!$C$131:$K$148,MATCH(ROW()-ROW(A$83),'VNOS PODATKOV'!$L$131:$L$148,0),8),\"\")","v":""},{"$f":"IFERROR(INDEX('VNOS PODATKOV'!$C$131:$K$148,MATCH(ROW()-ROW(B$83),'VNOS PODATKOV'!$L$131:$L$148,0),9),\"\")","v":""}]
[{"$f":"IFERROR(INDEX('VNOS PODATKOV'!$C$131:$K$148,MATCH(ROW()-ROW(A$83),'VNOS PODATKOV'!$L$131:$L$148,0),1),\"\")","v":""},null,{"$f":"IFERROR(INDEX('VNOS PODATKOV'!$C$131:$K$148,MATCH(ROW()-ROW(A$83),'VNOS PODATKOV'!$L$131:$L$148,0),3),\"\")","v":""},{"$f":"IFERROR(INDEX('VNOS PODATKOV'!$C$131:$K$148,MATCH(ROW()-ROW(A$83),'VNOS PODATKOV'!$L$131:$L$148,0),7),\"\")","v":""},{"$f":"IFERROR(INDEX('VNOS PODATKOV'!$C$131:$K$148,MATCH(ROW()-ROW(A$83),'VNOS PODATKOV'!$L$131:$L$148,0),8),\"\")","v":""},{"$f":"IFERROR(INDEX('VNOS PODATKOV'!$C$131:$K$148,MATCH(ROW()-ROW(B$83),'VNOS PODATKOV'!$L$131:$L$148,0),9),\"\")","v":""}]
[{"$f":"IFERROR(INDEX('VNOS PODATKOV'!$C$131:$K$148,MATCH(ROW()-ROW(A$83),'VNOS PODATKOV'!$L$131:$L$148,0),1),\"\")","v":""},null,{"$f":"IFERROR(INDEX('VNOS PODATKOV'!$C$131:$K$148,MATCH(ROW()-ROW(A$83),'VNOS PODATKOV'!$L$131:$L$148,0),3),\"\")","v":""},{"$f":"IFERROR(INDEX('VNOS PODATKOV'!$C$131:$K$148,MATCH(ROW()-ROW(A$83),'VNOS PODATKOV'!$L$131:$L$148,0),7),\"\")","v":""},{"$f":"IFERROR(INDEX('VNOS PODATKOV'!$C$131:$K$148,MATCH(ROW()-ROW(A$83),'VNOS PODATKOV'!$L$131:$L$148,0),8),\"\")","v":""},{"$f":"IFERROR(INDEX('VNOS PODATKOV'!$C$131:$K$148,MATCH(ROW()-ROW(B$83),'VNOS PODATKOV'!$L$131:$L$148,0),9),\"\")","v":""}]
[{"$f":"IFERROR(INDEX('VNOS PODATKOV'!$C$131:$K$148,MATCH(ROW()-ROW(A$83),'VNOS PODATKOV'!$L$131:$L$148,0),1),\"\")","v":""},null,{"$f":"IFERROR(INDEX('VNOS PODATKOV'!$C$131:$K$148,MATCH(ROW()-ROW(A$83),'VNOS PODATKOV'!$L$131:$L$148,0),3),\"\")","v":""},{"$f":"IFERROR(INDEX('VNOS PODATKOV'!$C$131:$K$148,MATCH(ROW()-ROW(A$83),'VNOS PODATKOV'!$L$131:$L$148,0),7),\"\")","v":""},{"$f":"IFERROR(INDEX('VNOS PODATKOV'!$C$131:$K$148,MATCH(ROW()-ROW(A$83),'VNOS PODATKOV'!$L$131:$L$148,0),8),\"\")","v":""},{"$f":"IFERROR(INDEX('VNOS PODATKOV'!$C$131:$K$148,MATCH(ROW()-ROW(B$83),'VNOS PODATKOV'!$L$131:$L$148,0),9),\"\")","v":""}]
[{"$f":"IFERROR(INDEX('VNOS PODATKOV'!$C$131:$K$148,MATCH(ROW()-ROW(A$83),'VNOS PODATKOV'!$L$131:$L$148,0),1),\"\")","v":""},null,{"$f":"IFERROR(INDEX('VNOS PODATKOV'!$C$131:$K$148,MATCH(ROW()-ROW(A$83),'VNOS PODATKOV'!$L$131:$L$148,0),3),\"\")","v":""},{"$f":"IFERROR(INDEX('VNOS PODATKOV'!$C$131:$K$148,MATCH(ROW()-ROW(A$83),'VNOS PODATKOV'!$L$131:$L$148,0),7),\"\")","v":""},{"$f":"IFERROR(INDEX('VNOS PODATKOV'!$C$131:$K$148,MATCH(ROW()-ROW(A$83),'VNOS PODATKOV'!$L$131:$L$148,0),8),\"\")","v":""},{"$f":"IFERROR(INDEX('VNOS PODATKOV'!$C$131:$K$148,MATCH(ROW()-ROW(B$83),'VNOS PODATKOV'!$L$131:$L$148,0),9),\"\")","v":""}]
[{"$f":"IFERROR(INDEX('VNOS PODATKOV'!$C$131:$K$148,MATCH(ROW()-ROW(A$83),'VNOS PODATKOV'!$L$131:$L$148,0),1),\"\")","v":""},null,{"$f":"IFERROR(INDEX('VNOS PODATKOV'!$C$131:$K$148,MATCH(ROW()-ROW(A$83),'VNOS PODATKOV'!$L$131:$L$148,0),3),\"\")","v":""},{"$f":"IFERROR(INDEX('VNOS PODATKOV'!$C$131:$K$148,MATCH(ROW()-ROW(A$83),'VNOS PODATKOV'!$L$131:$L$148,0),7),\"\")","v":""},{"$f":"IFERROR(INDEX('VNOS PODATKOV'!$C$131:$K$148,MATCH(ROW()-ROW(A$83),'VNOS PODATKOV'!$L$131:$L$148,0),8),\"\")","v":""},{"$f":"IFERROR(INDEX('VNOS PODATKOV'!$C$131:$K$148,MATCH(ROW()-ROW(B$83),'VNOS PODATKOV'!$L$131:$L$148,0),9),\"\")","v":""}]
[{"$f":"IFERROR(INDEX('VNOS PODATKOV'!$C$131:$K$148,MATCH(ROW()-ROW(A$83),'VNOS PODATKOV'!$L$131:$L$148,0),1),\"\")","v":""},null,{"$f":"IFERROR(INDEX('VNOS PODATKOV'!$C$131:$K$148,MATCH(ROW()-ROW(A$83),'VNOS PODATKOV'!$L$131:$L$148,0),3),\"\")","v":""},{"$f":"IFERROR(INDEX('VNOS PODATKOV'!$C$131:$K$148,MATCH(ROW()-ROW(A$83),'VNOS PODATKOV'!$L$131:$L$148,0),7),\"\")","v":""},{"$f":"IFERROR(INDEX('VNOS PODATKOV'!$C$131:$K$148,MATCH(ROW()-ROW(A$83),'VNOS PODATKOV'!$L$131:$L$148,0),8),\"\")","v":""},{"$f":"IFERROR(INDEX('VNOS PODATKOV'!$C$131:$K$148,MATCH(ROW()-ROW(B$83),'VNOS PODATKOV'!$L$131:$L$148,0),9),\"\")","v":""}]
[{"$f":"IFERROR(INDEX('VNOS PODATKOV'!$C$131:$K$148,MATCH(ROW()-ROW(A$83),'VNOS PODATKOV'!$L$131:$L$148,0),1),\"\")","v":""},null,{"$f":"IFERROR(INDEX('VNOS PODATKOV'!$C$131:$K$148,MATCH(ROW()-ROW(A$83),'VNOS PODATKOV'!$L$131:$L$148,0),3),\"\")","v":""},{"$f":"IFERROR(INDEX('VNOS PODATKOV'!$C$131:$K$148,MATCH(ROW()-ROW(A$83),'VNOS PODATKOV'!$L$131:$L$148,0),7),\"\")","v":""},{"$f":"IFERROR(INDEX('VNOS PODATKOV'!$C$131:$K$148,MATCH(ROW()-ROW(A$83),'VNOS PODATKOV'!$L$131:$L$148,0),8),\"\")","v":""},{"$f":"IFERROR(INDEX('VNOS PODATKOV'!$C$131:$K$148,MATCH(ROW()-ROW(B$83),'VNOS PODATKOV'!$L$131:$L$148,0),9),\"\")","v":""}]
[{"$f":"IFERROR(INDEX('VNOS PODATKOV'!$C$131:$K$148,MATCH(ROW()-ROW(A$83),'VNOS PODATKOV'!$L$131:$L$148,0),1),\"\")","v":""},null,{"$f":"IFERROR(INDEX('VNOS PODATKOV'!$C$131:$K$148,MATCH(ROW()-ROW(A$83),'VNOS PODATKOV'!$L$131:$L$148,0),3),\"\")","v":""},{"$f":"IFERROR(INDEX('VNOS PODATKOV'!$C$131:$K$148,MATCH(ROW()-ROW(A$83),'VNOS PODATKOV'!$L$131:$L$148,0),7),\"\")","v":""},{"$f":"IFERROR(INDEX('VNOS PODATKOV'!$C$131:$K$148,MATCH(ROW()-ROW(A$83),'VNOS PODATKOV'!$L$131:$L$148,0),8),\"\")","v":""},{"$f":"IFERROR(INDEX('VNOS PODATKOV'!$C$131:$K$148,MATCH(ROW()-ROW(B$83),'VNOS PODATKOV'!$L$131:$L$148,0),9),\"\")","v":""}]
[{"$f":"IFERROR(INDEX('VNOS PODATKOV'!$C$131:$K$148,MATCH(ROW()-ROW(A$83),'VNOS PODATKOV'!$L$131:$L$148,0),1),\"\")","v":""},null,{"$f":"IFERROR(INDEX('VNOS PODATKOV'!$C$131:$K$148,MATCH(ROW()-ROW(A$83),'VNOS PODATKOV'!$L$131:$L$148,0),3),\"\")","v":""},{"$f":"IFERROR(INDEX('VNOS PODATKOV'!$C$131:$K$148,MATCH(ROW()-ROW(A$83),'VNOS PODATKOV'!$L$131:$L$148,0),7),\"\")","v":""},{"$f":"IFERROR(INDEX('VNOS PODATKOV'!$C$131:$K$148,MATCH(ROW()-ROW(A$83),'VNOS PODATKOV'!$L$131:$L$148,0),8),\"\")","v":""},{"$f":"IFERROR(INDEX('VNOS PODATKOV'!$C$131:$K$148,MATCH(ROW()-ROW(B$83),'VNOS PODATKOV'!$L$131:$L$148,0),9),\"\")","v":""}]
[{"$f":"IFERROR(INDEX('VNOS PODATKOV'!$C$131:$K$148,MATCH(ROW()-ROW(A$83),'VNOS PODATKOV'!$L$131:$L$148,0),1),\"\")","v":""},null,{"$f":"IFERROR(INDEX('VNOS PODATKOV'!$C$131:$K$148,MATCH(ROW()-ROW(A$83),'VNOS PODATKOV'!$L$131:$L$148,0),3),\"\")","v":""},{"$f":"IFERROR(INDEX('VNOS PODATKOV'!$C$131:$K$148,MATCH(ROW()-ROW(A$83),'VNOS PODATKOV'!$L$131:$L$148,0),7),\"\")","v":""},{"$f":"IFERROR(INDEX('VNOS PODATKOV'!$C$131:$K$148,MATCH(ROW()-ROW(A$83),'VNOS PODATKOV'!$L$131:$L$148,0),8),\"\")","v":""},{"$f":"IFERROR(INDEX('VNOS PODATKOV'!$C$131:$K$148,MATCH(ROW()-ROW(B$83),'VNOS PODATKOV'!$L$131:$L$148,0),9),\"\")","v":""}]
[{"$f":"'VNOS PODATKOV'!C149","v":"VAROVALNI PASOVI INFRASTRUKTURE"}]
[{"$f":"IFERROR(INDEX('VNOS PODATKOV'!$C$152:$K$164,MATCH(ROW()-ROW(A$99),'VNOS PODATKOV'!$L$152:$L$164,0),1),\"\")","v":""},null,{"$f":"IFERROR(INDEX('VNOS PODATKOV'!$C$152:$K$164,MATCH(ROW()-ROW(A$99),'VNOS PODATKOV'!$L$152:$L$164,0),3),\"\")","v":""},{"$f":"IFERROR(INDEX('VNOS PODATKOV'!$C$152:$K$164,MATCH(ROW()-ROW(A$99),'VNOS PODATKOV'!$L$152:$L$164,0),7),\"\")","v":""},{"$f":"IFERROR(INDEX('VNOS PODATKOV'!$C$152:$K$164,MATCH(ROW()-ROW(A$99),'VNOS PODATKOV'!$L$152:$L$164,0),8),\"\")","v":""},{"$f":"IFERROR(INDEX('VNOS PODATKOV'!$C$152:$K$164,MATCH(ROW()-ROW(B$99),'VNOS PODATKOV'!$L$152:$L$164,0),9),\"\")","v":""}]
[{"$f":"IFERROR(INDEX('VNOS PODATKOV'!$C$152:$K$164,MATCH(ROW()-ROW(A$99),'VNOS PODATKOV'!$L$152:$L$164,0),1),\"\")","v":""},null,{"$f":"IFERROR(INDEX('VNOS PODATKOV'!$C$152:$K$164,MATCH(ROW()-ROW(A$99),'VNOS PODATKOV'!$L$152:$L$164,0),3),\"\")","v":""},{"$f":"IFERROR(INDEX('VNOS PODATKOV'!$C$152:$K$164,MATCH(ROW()-ROW(A$99),'VNOS PODATKOV'!$L$152:$L$164,0),7),\"\")","v":""},{"$f":"IFERROR(INDEX('VNOS PODATKOV'!$C$152:$K$164,MATCH(ROW()-ROW(A$99),'VNOS PODATKOV'!$L$152:$L$164,0),8),\"\")","v":""},{"$f":"IFERROR(INDEX('VNOS PODATKOV'!$C$152:$K$164,MATCH(ROW()-ROW(B$99),'VNOS PODATKOV'!$L$152:$L$164,0),9),\"\")","v":""}]
[{"$f":"IFERROR(INDEX('VNOS PODATKOV'!$C$152:$K$164,MATCH(ROW()-ROW(A$99),'VNOS PODATKOV'!$L$152:$L$164,0),1),\"\")","v":""},null,{"$f":"IFERROR(INDEX('VNOS PODATKOV'!$C$152:$K$164,MATCH(ROW()-ROW(A$99),'VNOS PODATKOV'!$L$152:$L$164,0),3),\"\")","v":""},{"$f":"IFERROR(INDEX('VNOS PODATKOV'!$C$152:$K$164,MATCH(ROW()-ROW(A$99),'VNOS PODATKOV'!$L$152:$L$164,0),7),\"\")","v":""},{"$f":"IFERROR(INDEX('VNOS PODATKOV'!$C$152:$K$164,MATCH(ROW()-ROW(A$99),'VNOS PODATKOV'!$L$152:$L$164,0),8),\"\")","v":""},{"$f":"IFERROR(INDEX('VNOS PODATKOV'!$C$152:$K$164,MATCH(ROW()-ROW(B$99),'VNOS PODATKOV'!$L$152:$L$164,0),9),\"\")","v":""}]
[{"$f":"IFERROR(INDEX('VNOS PODATKOV'!$C$152:$K$164,MATCH(ROW()-ROW(A$99),'VNOS PODATKOV'!$L$152:$L$164,0),1),\"\")","v":""},null,{"$f":"IFERROR(INDEX('VNOS PODATKOV'!$C$152:$K$164,MATCH(ROW()-ROW(A$99),'VNOS PODATKOV'!$L$152:$L$164,0),3),\"\")","v":""},{"$f":"IFERROR(INDEX('VNOS PODATKOV'!$C$152:$K$164,MATCH(ROW()-ROW(A$99),'VNOS PODATKOV'!$L$152:$L$164,0),7),\"\")","v":""},{"$f":"IFERROR(INDEX('VNOS PODATKOV'!$C$152:$K$164,MATCH(ROW()-ROW(A$99),'VNOS PODATKOV'!$L$152:$L$164,0),8),\"\")","v":""},{"$f":"IFERROR(INDEX('VNOS PODATKOV'!$C$152:$K$164,MATCH(ROW()-ROW(B$99),'VNOS PODATKOV'!$L$152:$L$164,0),9),\"\")","v":""}]
[{"$f":"IFERROR(INDEX('VNOS PODATKOV'!$C$152:$K$164,MATCH(ROW()-ROW(A$99),'VNOS PODATKOV'!$L$152:$L$164,0),1),\"\")","v":""},null,{"$f":"IFERROR(INDEX('VNOS PODATKOV'!$C$152:$K$164,MATCH(ROW()-ROW(A$99),'VNOS PODATKOV'!$L$152:$L$164,0),3),\"\")","v":""},{"$f":"IFERROR(INDEX('VNOS PODATKOV'!$C$152:$K$164,MATCH(ROW()-ROW(A$99),'VNOS PODATKOV'!$L$152:$L$164,0),7),\"\")","v":""},{"$f":"IFERROR(INDEX('VNOS PODATKOV'!$C$152:$K$164,MATCH(ROW()-ROW(A$99),'VNOS PODATKOV'!$L$152:$L$164,0),8),\"\")","v":""},{"$f":"IFERROR(INDEX('VNOS PODATKOV'!$C$152:$K$164,MATCH(ROW()-ROW(B$99),'VNOS PODATKOV'!$L$152:$L$164,0),9),\"\")","v":""}]
[{"$f":"IFERROR(INDEX('VNOS PODATKOV'!$C$152:$K$164,MATCH(ROW()-ROW(A$99),'VNOS PODATKOV'!$L$152:$L$164,0),1),\"\")","v":""},null,{"$f":"IFERROR(INDEX('VNOS PODATKOV'!$C$152:$K$164,MATCH(ROW()-ROW(A$99),'VNOS PODATKOV'!$L$152:$L$164,0),3),\"\")","v":""},{"$f":"IFERROR(INDEX('VNOS PODATKOV'!$C$152:$K$164,MATCH(ROW()-ROW(A$99),'VNOS PODATKOV'!$L$152:$L$164,0),7),\"\")","v":""},{"$f":"IFERROR(INDEX('VNOS PODATKOV'!$C$152:$K$164,MATCH(ROW()-ROW(A$99),'VNOS PODATKOV'!$L$152:$L$164,0),8),\"\")","v":""},{"$f":"IFERROR(INDEX('VNOS PODATKOV'!$C$152:$K$164,MATCH(ROW()-ROW(B$99),'VNOS PODATKOV'!$L$152:$L$164,0),9),\"\")","v":""}]
[{"$f":"IFERROR(INDEX('VNOS PODATKOV'!$C$152:$K$164,MATCH(ROW()-ROW(A$99),'VNOS PODATKOV'!$L$152:$L$164,0),1),\"\")","v":""},null,{"$f":"IFERROR(INDEX('VNOS PODATKOV'!$C$152:$K$164,MATCH(ROW()-ROW(A$99),'VNOS PODATKOV'!$L$152:$L$164,0),3),\"\")","v":""},{"$f":"IFERROR(INDEX('VNOS PODATKOV'!$C$152:$K$164,MATCH(ROW()-ROW(A$99),'VNOS PODATKOV'!$L$152:$L$164,0),7),\"\")","v":""},{"$f":"IFERROR(INDEX('VNOS PODATKOV'!$C$152:$K$164,MATCH(ROW()-ROW(A$99),'VNOS PODATKOV'!$L$152:$L$164,0),8),\"\")","v":""},{"$f":"IFERROR(INDEX('VNOS PODATKOV'!$C$152:$K$164,MATCH(ROW()-ROW(B$99),'VNOS PODATKOV'!$L$152:$L$164,0),9),\"\")","v":""}]
[{"$f":"IFERROR(INDEX('VNOS PODATKOV'!$C$152:$K$164,MATCH(ROW()-ROW(A$99),'VNOS PODATKOV'!$L$152:$L$164,0),1),\"\")","v":""},null,{"$f":"IFERROR(INDEX('VNOS PODATKOV'!$C$152:$K$164,MATCH(ROW()-ROW(A$99),'VNOS PODATKOV'!$L$152:$L$164,0),3),\"\")","v":""},{"$f":"IFERROR(INDEX('VNOS PODATKOV'!$C$152:$K$164,MATCH(ROW()-ROW(A$99),'VNOS PODATKOV'!$L$152:$L$164,0),7),\"\")","v":""},{"$f":"IFERROR(INDEX('VNOS PODATKOV'!$C$152:$K$164,MATCH(ROW()-ROW(A$99),'VNOS PODATKOV'!$L$152:$L$164,0),8),\"\")","v":""},{"$f":"IFERROR(INDEX('VNOS PODATKOV'!$C$152:$K$164,MATCH(ROW()-ROW(B$99),'VNOS PODATKOV'!$L$152:$L$164,0),9),\"\")","v":""}]
[{"$f":"IFERROR(INDEX('VNOS PODATKOV'!$C$152:$K$164,MATCH(ROW()-ROW(A$99),'VNOS PODATKOV'!$L$152:$L$164,0),1),\"\")","v":""},null,{"$f":"IFERROR(INDEX('VNOS PODATKOV'!$C$152:$K$164,MATCH(ROW()-ROW(A$99),'VNOS PODATKOV'!$L$152:$L$164,0),3),\"\")","v":""},{"$f":"IFERROR(INDEX('VNOS PODATKOV'!$C$152:$K$164,MATCH(ROW()-ROW(A$99),'VNOS PODATKOV'!$L$152:$L$164,0),7),\"\")","v":""},{"$f":"IFERROR(INDEX('VNOS PODATKOV'!$C$152:$K$164,MATCH(ROW()-ROW(A$99),'VNOS PODATKOV'!$L$152:$L$164,0),8),\"\")","v":""},{"$f":"IFERROR(INDEX('VNOS PODATKOV'!$C$152:$K$164,MATCH(ROW()-ROW(B$99),'VNOS PODATKOV'!$L$152:$L$164,0),9),\"\")","v":""}]
[{"$f":"IFERROR(INDEX('VNOS PODATKOV'!$C$152:$K$164,MATCH(ROW()-ROW(A$99),'VNOS PODATKOV'!$L$152:$L$164,0),1),\"\")","v":""},null,{"$f":"IFERROR(INDEX('VNOS PODATKOV'!$C$152:$K$164,MATCH(ROW()-ROW(A$99),'VNOS PODATKOV'!$L$152:$L$164,0),3),\"\")","v":""},{"$f":"IFERROR(INDEX('VNOS PODATKOV'!$C$152:$K$164,MATCH(ROW()-ROW(A$99),'VNOS PODATKOV'!$L$152:$L$164,0),7),\"\")","v":""},{"$f":"IFERROR(INDEX('VNOS PODATKOV'!$C$152:$K$164,MATCH(ROW()-ROW(A$99),'VNOS PODATKOV'!$L$152:$L$164,0),8),\"\")","v":""},{"$f":"IFERROR(INDEX('VNOS PODATKOV'!$C$152:$K$164,MATCH(ROW()-ROW(B$99),'VNOS PODATKOV'!$L$152:$L$164,0),9),\"\")","v":""}]
[{"$f":"IFERROR(INDEX('VNOS PODATKOV'!$C$152:$K$164,MATCH(ROW()-ROW(A$99),'VNOS PODATKOV'!$L$152:$L$164,0),1),\"\")","v":""},null,{"$f":"IFERROR(INDEX('VNOS PODATKOV'!$C$152:$K$164,MATCH(ROW()-ROW(A$99),'VNOS PODATKOV'!$L$152:$L$164,0),3),\"\")","v":""},{"$f":"IFERROR(INDEX('VNOS PODATKOV'!$C$152:$K$164,MATCH(ROW()-ROW(A$99),'VNOS PODATKOV'!$L$152:$L$164,0),7),\"\")","v":""},{"$f":"IFERROR(INDEX('VNOS PODATKOV'!$C$152:$K$164,MATCH(ROW()-ROW(A$99),'VNOS PODATKOV'!$L$152:$L$164,0),8),\"\")","v":""},{"$f":"IFERROR(INDEX('VNOS PODATKOV'!$C$152:$K$164,MATCH(ROW()-ROW(B$99),'VNOS PODATKOV'!$L$152:$L$164,0),9),\"\")","v":""}]
[{"$f":"IFERROR(INDEX('VNOS PODATKOV'!$C$152:$K$164,MATCH(ROW()-ROW(A$99),'VNOS PODATKOV'!$L$152:$L$164,0),1),\"\")","v":""},null,{"$f":"IFERROR(INDEX('VNOS PODATKOV'!$C$152:$K$164,MATCH(ROW()-ROW(A$99),'VNOS PODATKOV'!$L$152:$L$164,0),3),\"\")","v":""},{"$f":"IFERROR(INDEX('VNOS PODATKOV'!$C$152:$K$164,MATCH(ROW()-ROW(A$99),'VNOS PODATKOV'!$L$152:$L$164,0),7),\"\")","v":""},{"$f":"IFERROR(INDEX('VNOS PODATKOV'!$C$152:$K$164,MATCH(ROW()-ROW(A$99),'VNOS PODATKOV'!$L$152:$L$164,0),8),\"\")","v":""},{"$f":"IFERROR(INDEX('VNOS PODATKOV'!$C$152:$K$164,MATCH(ROW()-ROW(B$99),'VNOS PODATKOV'!$L$152:$L$164,0),9),\"\")","v":""}]
[{"$f":"IFERROR(INDEX('VNOS PODATKOV'!$C$152:$K$164,MATCH(ROW()-ROW(A$99),'VNOS PODATKOV'!$L$152:$L$164,0),1),\"\")","v":""},null,{"$f":"IFERROR(INDEX('VNOS PODATKOV'!$C$152:$K$164,MATCH(ROW()-ROW(A$99),'VNOS PODATKOV'!$L$152:$L$164,0),3),\"\")","v":""},{"$f":"IFERROR(INDEX('VNOS PODATKOV'!$C$152:$K$164,MATCH(ROW()-ROW(A$99),'VNOS PODATKOV'!$L$152:$L$164,0),7),\"\")","v":""},{"$f":"IFERROR(INDEX('VNOS PODATKOV'!$C$152:$K$164,MATCH(ROW()-ROW(A$99),'VNOS PODATKOV'!$L$152:$L$164,0),8),\"\")","v":""},{"$f":"IFERROR(INDEX('VNOS PODATKOV'!$C$152:$K$164,MATCH(ROW()-ROW(B$99),'VNOS PODATKOV'!$L$152:$L$164,0),9),\"\")","v":""}]
[{"$f":"'VNOS PODATKOV'!C165","v":"PRIKLJUČEVANJE NA INFRASTRUKTURO"}]
[{"$f":"IFERROR(INDEX('VNOS PODATKOV'!$C$168:$K$178,MATCH(ROW()-ROW(A$113),'VNOS PODATKOV'!$L$168:$L$178,0),1),\"\")","v":""},null,{"$f":"IFERROR(INDEX('VNOS PODATKOV'!$C$168:$K$178,MATCH(ROW()-ROW(A$113),'VNOS PODATKOV'!$L$168:$L$178,0),3),\"\")","v":""},{"$f":"IFERROR(INDEX('VNOS PODATKOV'!$C$168:$K$178,MATCH(ROW()-ROW(A$113),'VNOS PODATKOV'!$L$168:$L$178,0),7),\"\")","v":""},{"$f":"IFERROR(INDEX('VNOS PODATKOV'!$C$168:$K$178,MATCH(ROW()-ROW(A$113),'VNOS PODATKOV'!$L$168:$L$178,0),8),\"\")","v":""},{"$f":"IFERROR(INDEX('VNOS PODATKOV'!$C$168:$K$178,MATCH(ROW()-ROW(A$113),'VNOS PODATKOV'!$L$168:$L$178,0),9),\"\")","v":""}]
[{"$f":"IFERROR(INDEX('VNOS PODATKOV'!$C$168:$K$178,MATCH(ROW()-ROW(A$113),'VNOS PODATKOV'!$L$168:$L$178,0),1),\"\")","v":""},null,{"$f":"IFERROR(INDEX('VNOS PODATKOV'!$C$168:$K$178,MATCH(ROW()-ROW(A$113),'VNOS PODATKOV'!$L$168:$L$178,0),3),\"\")","v":""},{"$f":"IFERROR(INDEX('VNOS PODATKOV'!$C$168:$K$178,MATCH(ROW()-ROW(A$113),'VNOS PODATKOV'!$L$168:$L$178,0),7),\"\")","v":""},{"$f":"IFERROR(INDEX('VNOS PODATKOV'!$C$168:$K$178,MATCH(ROW()-ROW(A$113),'VNOS PODATKOV'!$L$168:$L$178,0),8),\"\")","v":""},{"$f":"IFERROR(INDEX('VNOS PODATKOV'!$C$168:$K$178,MATCH(ROW()-ROW(A$113),'VNOS PODATKOV'!$L$168:$L$178,0),9),\"\")","v":""}]
[{"$f":"IFERROR(INDEX('VNOS PODATKOV'!$C$168:$K$178,MATCH(ROW()-ROW(A$113),'VNOS PODATKOV'!$L$168:$L$178,0),1),\"\")","v":""},null,{"$f":"IFERROR(INDEX('VNOS PODATKOV'!$C$168:$K$178,MATCH(ROW()-ROW(A$113),'VNOS PODATKOV'!$L$168:$L$178,0),3),\"\")","v":""},{"$f":"IFERROR(INDEX('VNOS PODATKOV'!$C$168:$K$178,MATCH(ROW()-ROW(A$113),'VNOS PODATKOV'!$L$168:$L$178,0),7),\"\")","v":""},{"$f":"IFERROR(INDEX('VNOS PODATKOV'!$C$168:$K$178,MATCH(ROW()-ROW(A$113),'VNOS PODATKOV'!$L$168:$L$178,0),8),\"\")","v":""},{"$f":"IFERROR(INDEX('VNOS PODATKOV'!$C$168:$K$178,MATCH(ROW()-ROW(A$113),'VNOS PODATKOV'!$L$168:$L$178,0),9),\"\")","v":""}]
[{"$f":"IFERROR(INDEX('VNOS PODATKOV'!$C$168:$K$178,MATCH(ROW()-ROW(A$113),'VNOS PODATKOV'!$L$168:$L$178,0),1),\"\")","v":""},null,{"$f":"IFERROR(INDEX('VNOS PODATKOV'!$C$168:$K$178,MATCH(ROW()-ROW(A$113),'VNOS PODATKOV'!$L$168:$L$178,0),3),\"\")","v":""},{"$f":"IFERROR(INDEX('VNOS PODATKOV'!$C$168:$K$178,MATCH(ROW()-ROW(A$113),'VNOS PODATKOV'!$L$168:$L$178,0),7),\"\")","v":""},{"$f":"IFERROR(INDEX('VNOS PODATKOV'!$C$168:$K$178,MATCH(ROW()-ROW(A$113),'VNOS PODATKOV'!$L$168:$L$178,0),8),\"\")","v":""},{"$f":"IFERROR(INDEX('VNOS PODATKOV'!$C$168:$K$178,MATCH(ROW()-ROW(A$113),'VNOS PODATKOV'!$L$168:$L$178,0),9),\"\")","v":""}]
[{"$f":"IFERROR(INDEX('VNOS PODATKOV'!$C$168:$K$178,MATCH(ROW()-ROW(A$113),'VNOS PODATKOV'!$L$168:$L$178,0),1),\"\")","v":""},null,{"$f":"IFERROR(INDEX('VNOS PODATKOV'!$C$168:$K$178,MATCH(ROW()-ROW(A$113),'VNOS PODATKOV'!$L$168:$L$178,0),3),\"\")","v":""},{"$f":"IFERROR(INDEX('VNOS PODATKOV'!$C$168:$K$178,MATCH(ROW()-ROW(A$113),'VNOS PODATKOV'!$L$168:$L$178,0),7),\"\")","v":""},{"$f":"IFERROR(INDEX('VNOS PODATKOV'!$C$168:$K$178,MATCH(ROW()-ROW(A$113),'VNOS PODATKOV'!$L$168:$L$178,0),8),\"\")","v":""},{"$f":"IFERROR(INDEX('VNOS PODATKOV'!$C$168:$K$178,MATCH(ROW()-ROW(A$113),'VNOS PODATKOV'!$L$168:$L$178,0),9),\"\")","v":""}]
[{"$f":"IFERROR(INDEX('VNOS PODATKOV'!$C$168:$K$178,MATCH(ROW()-ROW(A$113),'VNOS PODATKOV'!$L$168:$L$178,0),1),\"\")","v":""},null,{"$f":"IFERROR(INDEX('VNOS PODATKOV'!$C$168:$K$178,MATCH(ROW()-ROW(A$113),'VNOS PODATKOV'!$L$168:$L$178,0),3),\"\")","v":""},{"$f":"IFERROR(INDEX('VNOS PODATKOV'!$C$168:$K$178,MATCH(ROW()-ROW(A$113),'VNOS PODATKOV'!$L$168:$L$178,0),7),\"\")","v":""},{"$f":"IFERROR(INDEX('VNOS PODATKOV'!$C$168:$K$178,MATCH(ROW()-ROW(A$113),'VNOS PODATKOV'!$L$168:$L$178,0),8),\"\")","v":""},{"$f":"IFERROR(INDEX('VNOS PODATKOV'!$C$168:$K$178,MATCH(ROW()-ROW(A$113),'VNOS PODATKOV'!$L$168:$L$178,0),9),\"\")","v":""}]
[{"$f":"IFERROR(INDEX('VNOS PODATKOV'!$C$168:$K$178,MATCH(ROW()-ROW(A$113),'VNOS PODATKOV'!$L$168:$L$178,0),1),\"\")","v":""},null,{"$f":"IFERROR(INDEX('VNOS PODATKOV'!$C$168:$K$178,MATCH(ROW()-ROW(A$113),'VNOS PODATKOV'!$L$168:$L$178,0),3),\"\")","v":""},{"$f":"IFERROR(INDEX('VNOS PODATKOV'!$C$168:$K$178,MATCH(ROW()-ROW(A$113),'VNOS PODATKOV'!$L$168:$L$178,0),7),\"\")","v":""},{"$f":"IFERROR(INDEX('VNOS PODATKOV'!$C$168:$K$178,MATCH(ROW()-ROW(A$113),'VNOS PODATKOV'!$L$168:$L$178,0),8),\"\")","v":""},{"$f":"IFERROR(INDEX('VNOS PODATKOV'!$C$168:$K$178,MATCH(ROW()-ROW(A$113),'VNOS PODATKOV'!$L$168:$L$178,0),9),\"\")","v":""}]
[{"$f":"IFERROR(INDEX('VNOS PODATKOV'!$C$168:$K$178,MATCH(ROW()-ROW(A$113),'VNOS PODATKOV'!$L$168:$L$178,0),1),\"\")","v":""},null,{"$f":"IFERROR(INDEX('VNOS PODATKOV'!$C$168:$K$178,MATCH(ROW()-ROW(A$113),'VNOS PODATKOV'!$L$168:$L$178,0),3),\"\")","v":""},{"$f":"IFERROR(INDEX('VNOS PODATKOV'!$C$168:$K$178,MATCH(ROW()-ROW(A$113),'VNOS PODATKOV'!$L$168:$L$178,0),7),\"\")","v":""},{"$f":"IFERROR(INDEX('VNOS PODATKOV'!$C$168:$K$178,MATCH(ROW()-ROW(A$113),'VNOS PODATKOV'!$L$168:$L$178,0),8),\"\")","v":""},{"$f":"IFERROR(INDEX('VNOS PODATKOV'!$C$168:$K$178,MATCH(ROW()-ROW(A$113),'VNOS PODATKOV'!$L$168:$L$178,0),9),\"\")","v":""}]
[{"$f":"IFERROR(INDEX('VNOS PODATKOV'!$C$168:$K$178,MATCH(ROW()-ROW(A$113),'VNOS PODATKOV'!$L$168:$L$178,0),1),\"\")","v":""},null,{"$f":"IFERROR(INDEX('VNOS PODATKOV'!$C$168:$K$178,MATCH(ROW()-ROW(A$113),'VNOS PODATKOV'!$L$168:$L$178,0),3),\"\")","v":""},{"$f":"IFERROR(INDEX('VNOS PODATKOV'!$C$168:$K$178,MATCH(ROW()-ROW(A$113),'VNOS PODATKOV'!$L$168:$L$178,0),7),\"\")","v":""},{"$f":"IFERROR(INDEX('VNOS PODATKOV'!$C$168:$K$178,MATCH(ROW()-ROW(A$113),'VNOS PODATKOV'!$L$168:$L$178,0),8),\"\")","v":""},{"$f":"IFERROR(INDEX('VNOS PODATKOV'!$C$168:$K$178,MATCH(ROW()-ROW(A$113),'VNOS PODATKOV'!$L$168:$L$178,0),9),\"\")","v":""}]
[{"$f":"IFERROR(INDEX('VNOS PODATKOV'!$C$168:$K$178,MATCH(ROW()-ROW(A$113),'VNOS PODATKOV'!$L$168:$L$178,0),1),\"\")","v":""},null,{"$f":"IFERROR(INDEX('VNOS PODATKOV'!$C$168:$K$178,MATCH(ROW()-ROW(A$113),'VNOS PODATKOV'!$L$168:$L$178,0),3),\"\")","v":""},{"$f":"IFERROR(INDEX('VNOS PODATKOV'!$C$168:$K$178,MATCH(ROW()-ROW(A$113),'VNOS PODATKOV'!$L$168:$L$178,0),7),\"\")","v":""},{"$f":"IFERROR(INDEX('VNOS PODATKOV'!$C$168:$K$178,MATCH(ROW()-ROW(A$113),'VNOS PODATKOV'!$L$168:$L$178,0),8),\"\")","v":""},{"$f":"IFERROR(INDEX('VNOS PODATKOV'!$C$168:$K$178,MATCH(ROW()-ROW(A$113),'VNOS PODATKOV'!$L$168:$L$178,0),9),\"\")","v":""}]
[{"$f":"IFERROR(INDEX('VNOS PODATKOV'!$C$168:$K$178,MATCH(ROW()-ROW(A$113),'VNOS PODATKOV'!$L$168:$L$178,0),1),\"\")","v":""},null,{"$f":"IFERROR(INDEX('VNOS PODATKOV'!$C$168:$K$178,MATCH(ROW()-ROW(A$113),'VNOS PODATKOV'!$L$168:$L$178,0),3),\"\")","v":""},{"$f":"IFERROR(INDEX('VNOS PODATKOV'!$C$168:$K$178,MATCH(ROW()-ROW(A$113),'VNOS PODATKOV'!$L$168:$L$178,0),7),\"\")","v":""},{"$f":"IFERROR(INDEX('VNOS PODATKOV'!$C$168:$K$178,MATCH(ROW()-ROW(A$113),'VNOS PODATKOV'!$L$168:$L$178,0),8),\"\")","v":""},{"$f":"IFERROR(INDEX('VNOS PODATKOV'!$C$168:$K$178,MATCH(ROW()-ROW(A$113),'VNOS PODATKOV'!$L$168:$L$178,0),9),\"\")","v":""}]
[{"$f":"'VNOS PODATKOV'!C179","v":"DRUGA MNENJA"}]
[{"$f":"IFERROR(INDEX('VNOS PODATKOV'!$C$182:$K$189,MATCH(ROW()-ROW(A$125),'VNOS PODATKOV'!$L$182:$L$189,0),1),\"\")","v":""},null,{"$f":"IFERROR(INDEX('VNOS PODATKOV'!$C$182:$K$189,MATCH(ROW()-ROW(A$125),'VNOS PODATKOV'!$L$182:$L$189,0),3),\"\")","v":""},{"$f":"IFERROR(INDEX('VNOS PODATKOV'!$C$182:$K$189,MATCH(ROW()-ROW(C$125),'VNOS PODATKOV'!$L$182:$L$189,0),7),\"\")","v":""},{"$f":"IFERROR(INDEX('VNOS PODATKOV'!$C$182:$K$189,MATCH(ROW()-ROW(C$125),'VNOS PODATKOV'!$L$182:$L$189,0),8),\"\")","v":""},{"$f":"IFERROR(INDEX('VNOS PODATKOV'!$C$182:$K$189,MATCH(ROW()-ROW(C$125),'VNOS PODATKOV'!$L$182:$L$189,0),9),\"\")","v":""}]
[{"$f":"IFERROR(INDEX('VNOS PODATKOV'!$C$182:$K$189,MATCH(ROW()-ROW(A$125),'VNOS PODATKOV'!$L$182:$L$189,0),1),\"\")","v":""},null,{"$f":"IFERROR(INDEX('VNOS PODATKOV'!$C$182:$K$189,MATCH(ROW()-ROW(A$125),'VNOS PODATKOV'!$L$182:$L$189,0),3),\"\")","v":""},{"$f":"IFERROR(INDEX('VNOS PODATKOV'!$C$182:$K$189,MATCH(ROW()-ROW(C$125),'VNOS PODATKOV'!$L$182:$L$189,0),7),\"\")","v":""},{"$f":"IFERROR(INDEX('VNOS PODATKOV'!$C$182:$K$189,MATCH(ROW()-ROW(C$125),'VNOS PODATKOV'!$L$182:$L$189,0),8),\"\")","v":""},{"$f":"IFERROR(INDEX('VNOS PODATKOV'!$C$182:$K$189,MATCH(ROW()-ROW(C$125),'VNOS PODATKOV'!$L$182:$L$189,0),9),\"\")","v":""}]
[{"$f":"IFERROR(INDEX('VNOS PODATKOV'!$C$182:$K$189,MATCH(ROW()-ROW(A$125),'VNOS PODATKOV'!$L$182:$L$189,0),1),\"\")","v":""},null,{"$f":"IFERROR(INDEX('VNOS PODATKOV'!$C$182:$K$189,MATCH(ROW()-ROW(A$125),'VNOS PODATKOV'!$L$182:$L$189,0),3),\"\")","v":""},{"$f":"IFERROR(INDEX('VNOS PODATKOV'!$C$182:$K$189,MATCH(ROW()-ROW(C$125),'VNOS PODATKOV'!$L$182:$L$189,0),7),\"\")","v":""},{"$f":"IFERROR(INDEX('VNOS PODATKOV'!$C$182:$K$189,MATCH(ROW()-ROW(C$125),'VNOS PODATKOV'!$L$182:$L$189,0),8),\"\")","v":""},{"$f":"IFERROR(INDEX('VNOS PODATKOV'!$C$182:$K$189,MATCH(ROW()-ROW(C$125),'VNOS PODATKOV'!$L$182:$L$189,0),9),\"\")","v":""}]
[{"$f":"IFERROR(INDEX('VNOS PODATKOV'!$C$182:$K$189,MATCH(ROW()-ROW(A$125),'VNOS PODATKOV'!$L$182:$L$189,0),1),\"\")","v":""},null,{"$f":"IFERROR(INDEX('VNOS PODATKOV'!$C$182:$K$189,MATCH(ROW()-ROW(A$125),'VNOS PODATKOV'!$L$182:$L$189,0),3),\"\")","v":""},{"$f":"IFERROR(INDEX('VNOS PODATKOV'!$C$182:$K$189,MATCH(ROW()-ROW(C$125),'VNOS PODATKOV'!$L$182:$L$189,0),7),\"\")","v":""},{"$f":"IFERROR(INDEX('VNOS PODATKOV'!$C$182:$K$189,MATCH(ROW()-ROW(C$125),'VNOS PODATKOV'!$L$182:$L$189,0),8),\"\")","v":""},{"$f":"IFERROR(INDEX('VNOS PODATKOV'!$C$182:$K$189,MATCH(ROW()-ROW(C$125),'VNOS PODATKOV'!$L$182:$L$189,0),9),\"\")","v":""}]
[{"$f":"IFERROR(INDEX('VNOS PODATKOV'!$C$182:$K$189,MATCH(ROW()-ROW(A$125),'VNOS PODATKOV'!$L$182:$L$189,0),1),\"\")","v":""},null,{"$f":"IFERROR(INDEX('VNOS PODATKOV'!$C$182:$K$189,MATCH(ROW()-ROW(A$125),'VNOS PODATKOV'!$L$182:$L$189,0),3),\"\")","v":""},{"$f":"IFERROR(INDEX('VNOS PODATKOV'!$C$182:$K$189,MATCH(ROW()-ROW(C$125),'VNOS PODATKOV'!$L$182:$L$189,0),7),\"\")","v":""},{"$f":"IFERROR(INDEX('VNOS PODATKOV'!$C$182:$K$189,MATCH(ROW()-ROW(C$125),'VNOS PODATKOV'!$L$182:$L$189,0),8),\"\")","v":""},{"$f":"IFERROR(INDEX('VNOS PODATKOV'!$C$182:$K$189,MATCH(ROW()-ROW(C$125),'VNOS PODATKOV'!$L$182:$L$189,0),9),\"\")","v":""}]
[{"$f":"IFERROR(INDEX('VNOS PODATKOV'!$C$182:$K$189,MATCH(ROW()-ROW(A$125),'VNOS PODATKOV'!$L$182:$L$189,0),1),\"\")","v":""},null,{"$f":"IFERROR(INDEX('VNOS PODATKOV'!$C$182:$K$189,MATCH(ROW()-ROW(A$125),'VNOS PODATKOV'!$L$182:$L$189,0),3),\"\")","v":""},{"$f":"IFERROR(INDEX('VNOS PODATKOV'!$C$182:$K$189,MATCH(ROW()-ROW(C$125),'VNOS PODATKOV'!$L$182:$L$189,0),7),\"\")","v":""},{"$f":"IFERROR(INDEX('VNOS PODATKOV'!$C$182:$K$189,MATCH(ROW()-ROW(C$125),'VNOS PODATKOV'!$L$182:$L$189,0),8),\"\")","v":""},{"$f":"IFERROR(INDEX('VNOS PODATKOV'!$C$182:$K$189,MATCH(ROW()-ROW(C$125),'VNOS PODATKOV'!$L$182:$L$189,0),9),\"\")","v":""}]
[{"$f":"IFERROR(INDEX('VNOS PODATKOV'!$C$182:$K$189,MATCH(ROW()-ROW(A$125),'VNOS PODATKOV'!$L$182:$L$189,0),1),\"\")","v":""},null,{"$f":"IFERROR(INDEX('VNOS PODATKOV'!$C$182:$K$189,MATCH(ROW()-ROW(A$125),'VNOS PODATKOV'!$L$182:$L$189,0),3),\"\")","v":""},{"$f":"IFERROR(INDEX('VNOS PODATKOV'!$C$182:$K$189,MATCH(ROW()-ROW(C$125),'VNOS PODATKOV'!$L$182:$L$189,0),7),\"\")","v":""},{"$f":"IFERROR(INDEX('VNOS PODATKOV'!$C$182:$K$189,MATCH(ROW()-ROW(C$125),'VNOS PODATKOV'!$L$182:$L$189,0),8),\"\")","v":""},{"$f":"IFERROR(INDEX('VNOS PODATKOV'!$C$182:$K$189,MATCH(ROW()-ROW(C$125),'VNOS PODATKOV'!$L$182:$L$189,0),9),\"\")","v":""}]
[{"$f":"IFERROR(INDEX('VNOS PODATKOV'!$C$182:$K$189,MATCH(ROW()-ROW(A$125),'VNOS PODATKOV'!$L$182:$L$189,0),1),\"\")","v":""},null,{"$f":"IFERROR(INDEX('VNOS PODATKOV'!$C$182:$K$189,MATCH(ROW()-ROW(A$125),'VNOS PODATKOV'!$L$182:$L$189,0),3),\"\")","v":""},{"$f":"IFERROR(INDEX('VNOS PODATKOV'!$C$182:$K$189,MATCH(ROW()-ROW(C$125),'VNOS PODATKOV'!$L$182:$L$189,0),7),\"\")","v":""},{"$f":"IFERROR(INDEX('VNOS PODATKOV'!$C$182:$K$189,MATCH(ROW()-ROW(C$125),'VNOS PODATKOV'!$L$182:$L$189,0),8),\"\")","v":""},{"$f":"IFERROR(INDEX('VNOS PODATKOV'!$C$182:$K$189,MATCH(ROW()-ROW(C$125),'VNOS PODATKOV'!$L$182:$L$189,0),9),\"\")","v":""}]
["IZKAZOVANJE PRAVICE GRADITI"]
["ustrezno označiti"]
[null,false,"Lastninska ali druga stvarna pravica na nepremičninah, na katerih se bo izvajala gradnja, je vpisana v zemljiški knjigi."]
[null,false,"Iz uradnih evidenc je razvidno, da je investitor zakoniti upravljavec nepremičnine, na kateri se bo izvajala gradnja."]
[null,null,"Pravico graditi dokazujem z listinami:"]
[null,false,"notarsko overjena pogodba o pridobitvi lastninske ali druge stvarne pravice na nepremičninah, na katerih se bo izvajala gradnja, ki je predlagana za vpis v zemljiško knjigo;"]
[null,false,"sodna ali upravna odločba, ki investitorju omogoča gradnjo oziroma izvajanje del;"]
[null,false,"sklep o določitvi investitorja kot upravljavca nepremičnine, če gre za nepremičnino v lasti njegovega ustanovitelja;"]
[null,false,"druga listina, ki v skladu z zakonom investitorju omogoča gradnjo oziroma izvajanje del;"]
[null,false,"soglasje upravljavca javne ceste za izvedbo gradnje v cestnem telesu, če gre za gradnjo objekta gospodarske javne infrastrukture, skupaj s priključki, ki se izvaja v cestnem telesu javne ceste;"]
[null,false,"notarsko overjena pogodba o pridobitvi obligacijske pravice, za nepremičnine, na katerih so predvidene začasne ureditve za potrebe gradnje."]
[]
["PODATKI ZA IZRAČUN UPRAVNE TAKSE"]
["podatek se ne vpiše, če se vloga nanaša samo na nezahtevni objekt"]
["Ocenjena vrednost objekta v EUR brez DDV",null,{"$f":"'VNOS PODATKOV'!D198","v":0}]
[]
[null,null,"Na podlagi navedenih podatkov in priloženega projekta ter ostalih priloženih listin vas prosim za spremembo gradbenega dovoljenja."]
[]
["datum",null,"podpis vložnika"]
[{"$f":"TODAY()","v":"2023-03-24"}]
[]
[]
["PRILOGE"]
["ustrezno označiti"]
[null,false,"Pooblastilo (če zahteve ne vlaga investitor)"]
[null,false,"Projektna dokumentacija za spremembo GD ali sprememba DNZO ali DSN"]
[null,false,"Sprememba projekta DGD, DNZO ali DSN"]
[null,false,"Nov projekt DGD, DNZO ali DSN"]
[null,false,"Sklep predhodne presoje vplivov na okolje (če gre za objekt z vplivi na okolje in če je bila pridobljena)"]
[null,false,"Poročilo o vplivih na okolje"]
[null,false,"Mnenja (če so pridobljena) ali dokazilo o predloženi zahtevi za mnenje, ki ni bilo izdano \nv predpisanem roku"]
[null,false,"Listine, ki izkazujejo pravico graditi, če lastninska ali druga stvarna pravica ni vpisana v zemljiško knjigo ali če iz uradnih evidenc ni razvidno, da je investitor zakoniti upravljavec nepremičnin (če spremembe vplivajo na že izkazano pravico graditi)"]
[null,null,"Pisne izjave strank, da se strinjajo z nameravano gradnjo, če so pridobljene"]
[null,null,"Druge priloge"]

{"sheet":"15A - IZJAVA NADZORNIKA SN","index":7,"n_rows":27,"n_cols":6,"rows_kept":27,"cut":false,"hidden":false,"merged":[[6,0,6,1],[7,0,7,1],[10,2,10,5],[12,0,12,1],[1,0,1,3],[3,0,3,5],[4,0,4,1],[5,0,5,1],[13,0,13,1],[15,2,15,5],[17,0,17,1],[18,0,18,1],[20,2,20,5],[25,0,25,1],[26,0,26,1],[26,2,26,5],[22,0,22,1],[23,0,23,1],[24,0,24,1],[24,2,24,5]]}
["PRILOGA 15A"]
["IZJAVA NADZORNIKA IN VODJE NADZORA \nOB VLOGI ZA IZDAJO UD \nZA SPREMEMBO NAMEMBNOSTI"]
[]
["NADZORNIK"]
[{"$f":"'VNOS PODATKOV'!C57","v":"naziv družbe"},null,{"$f":"'VNOS PODATKOV'!D57","v":0},{"$f":"IF('VNOS PODATKOV'!E$41=TRUE,'VNOS PODATKOV'!E25, \"\")","v":""},{"$f":"IF('VNOS PODATKOV'!F$41=TRUE,'VNOS PODATKOV'!F25, \"\")","v":""},{"$f":"IF('VNOS PODATKOV'!G$41=TRUE,'VNOS PODATKOV'!G25, \"\")","v":""}]
[{"$f":"'VNOS PODATKOV'!C58","v":"poslovni naslov družbe"},null,{"$f":"'VNOS PODATKOV'!D58","v":0},{"$f":"IF('VNOS PODATKOV'!E$41=TRUE,'VNOS PODATKOV'!E26, \"\")","v":""},{"$f":"IF('VNOS PODATKOV'!F$41=TRUE,'VNOS PODATKOV'!F26, \"\")","v":""},{"$f":"IF('VNOS PODATKOV'!G$41=TRUE,'VNOS PODATKOV'!G26, \"\")","v":""}]
[{"$f":"'VNOS PODATKOV'!C60","v":"odgovorna oseba nadzornika"},null,{"$f":"'VNOS PODATKOV'!D60","v":0},{"$f":"IF('VNOS PODATKOV'!E$41=TRUE,'VNOS PODATKOV'!E27, \"\")","v":""},{"$f":"IF('VNOS PODATKOV'!F$41=TRUE,'VNOS PODATKOV'!F27, \"\")","v":""},{"$f":"IF('VNOS PODATKOV'!G$41=TRUE,'VNOS PODATKOV'!G27, \"\")","v":""}]
[{"$f":"'VNOS PODATKOV'!C62","v":"vodja nadzora"},null,{"$f":"IF('VNOS PODATKOV'!D62=\"\",\"\",(CONCATENATE('VNOS PODATKOV'!D62,\", \",'VNOS PODATKOV'!D63)))","v":""},{"$f":"IF('VNOS PODATKOV'!E$41=TRUE,'VNOS PODATKOV'!E28, \"\")","v":""},{"$f":"IF('VNOS PODATKOV'!F$41=TRUE,'VNOS PODATKOV'!F28, \"\")","v":""},{"$f":"IF('VNOS PODATKOV'!G$41=TRUE,'VNOS PODATKOV'!G28, \"\")","v":""}]
[]
[null,null,"IZJAVLJAM:"]
[null,null,"da je sprememba namembnosti izvedena skladno z gradbenim dovoljenjem:"]
[]
[{"$f":"'VNOS PODATKOV'!C202","v":"številka dovoljenja"},null,{"$f":"'VNOS PODATKOV'!D202","v":0},{"$f":"IF('VNOS PODATKOV'!E$41=TRUE,'VNOS PODATKOV'!E33, \"\")","v":""},{"$f":"IF('VNOS PODATKOV'!F$41=TRUE,'VNOS PODATKOV'!F33, \"\")","v":""},{"$f":"IF('VNOS PODATKOV'!G$41=TRUE,'VNOS PODATKOV'!G33, \"\")","v":""}]
["z dne",null,{"$f":"'VNOS PODATKOV'!D203","v":"00:00:00"},{"$f":"IF('VNOS PODATKOV'!E$41=TRUE,'VNOS PODATKOV'!E34, \"\")","v":""},{"$f":"IF('VNOS PODATKOV'!F$41=TRUE,'VNOS PODATKOV'!F34, \"\")","v":""},{"$f":"IF('VNOS PODATKOV'!G$41=TRUE,'VNOS PODATKOV'!G34, \"\")","v":""}]
[]
[null,null,"in spremembo gradbenega dovoljenja:"]
[]
[{"$f":"'VNOS PODATKOV'!C209","v":"številka dovoljenja"},null,{"$f":"'VNOS PODATKOV'!D209","v":0},{"$f":"IF('VNOS PODATKOV'!E$41=TRUE,'VNOS PODATKOV'!E38, \"\")","v":""},{"$f":"IF('VNOS PODATKOV'!F$41=TRUE,'VNOS PODATKOV'!F38, \"\")","v":""},{"$f":"IF('VNOS PODATKOV'!G$41=TRUE,'VNOS PODATKOV'!G38, \"\")","v":""}]
["z dne",null,{"$f":"'VNOS PODATKOV'!D210","v":"00:00:00"},{"$f":"IF('VNOS PODATKOV'!E$41=TRUE,'VNOS PODATKOV'!E39, \"\")","v":""},{"$f":"IF('VNOS PODATKOV'!F$41=TRUE,'VNOS PODATKOV'!F39, \"\")","v":""},{"$f":"IF('VNOS PODATKOV'!G$41=TRUE,'VNOS PODATKOV'!G39, \"\")","v":""}]
[]
[null,null,"Z izvedenimi deli se izpolnjevanje bistvenih zahtev objekta ni poslabšalo."]
[]
[{"$f":"'VNOS PODATKOV'!C62","v":"vodja nadzora"},null,{"$f":"IF('VNOS PODATKOV'!D62=\"\",\"\",(CONCATENATE('VNOS PODATKOV'!D62,\", \",'VNOS PODATKOV'!D63)))","v":""},{"$f":"IF('VNOS PODATKOV'!E$41=TRUE,'VNOS PODATKOV'!E43, \"\")","v":""},{"$f":"IF('VNOS PODATKOV'!F$41=TRUE,'VNOS PODATKOV'!F43, \"\")","v":""},{"$f":"IF('VNOS PODATKOV'!G$41=TRUE,'VNOS PODATKOV'!G43, \"\")","v":""}]
["identifikacijska številka",null,{"$f":"'VNOS PODATKOV'!D64","v":0},{"$f":"IF('VNOS PODATKOV'!E$41=TRUE,'VNOS PODATKOV'!E44, \"\")","v":""},{"$f":"IF('VNOS PODATKOV'!F$41=TRUE,'VNOS PODATKOV'!F44, \"\")","v":""},{"$f":"IF('VNOS PODATKOV'!G$41=TRUE,'VNOS PODATKOV'!G44, \"\")","v":""}]
["podpis vodje nadzora"]
["odgovorna oseba nadzornika",null,{"$f":"'VNOS PODATKOV'!D60","v":0},{"$f":"IF('VNOS PODATKOV'!E$41=TRUE,'VNOS PODATKOV'!E46, \"\")","v":""},{"$f":"IF('VNOS PODATKOV'!F$41=TRUE,'VNOS PODATKOV'!F46, \"\")","v":""},{"$f":"IF('VNOS PODATKOV'!G$41=TRUE,'VNOS PODATKOV'!G46, \"\")","v":""}]
["podpis odgovorne osebe nadzornika"]

{"sheet":"16A DOPOL VLOGE","index":8,"n_rows":50,"n_cols":3,"rows_kept":50,"cut":false,"hidden":false,"merged":[[1,0,1,2],[25,0,25,1],[26,0,26,1],[48,0,48,2]]}
["PRILOGA 16A"]
["DOPOLNITEV VLOGE"]
[]
[{"$f":"'VNOS PODATKOV'!C22","v":"INVESTITOR"}]
[{"$f":"'VNOS PODATKOV'!C23","v":"INVESTITOR 1"}]
[{"$f":"'VNOS PODATKOV'!C24","v":"ime in priimek ali naziv družbe"},null,{"$f":"'VNOS PODATKOV'!D24","v":0}]
[{"$f":"'VNOS PODATKOV'!C25","v":"naslov ali sedež družbe"},null,{"$f":"'VNOS PODATKOV'!D25","v":0}]
[{"$f":"'VNOS PODATKOV'!C27","v":"INVESTITOR 2"}]
[{"$f":"'VNOS PODATKOV'!C28","v":"ime in priimek ali naziv družbe"},null,{"$f":"'VNOS PODATKOV'!D28","v":0}]
[{"$f":"'VNOS PODATKOV'!C29","v":"naslov ali sedež družbe"},null,{"$f":"'VNOS PODATKOV'!D29","v":0}]
[{"$f":"'VNOS PODATKOV'!C31","v":"INVESTITOR 3"}]
[{"$f":"'VNOS PODATKOV'!C32","v":"ime in priimek ali naziv družbe"},null,{"$f":"'VNOS PODATKOV'!D32","v":0}]
[{"$f":"'VNOS PODATKOV'!C33","v":"naslov ali sedež družbe"},null,{"$f":"'VNOS PODATKOV'!D33","v":0}]
[]
[{"$f":"'VNOS PODATKOV'!C35","v":"KONTAKTNA OSEBA"}]
[{"$f":"'VNOS PODATKOV'!C36","v":"ime in priimek"},null,{"$f":"'VNOS PODATKOV'!D36","v":0}]
[{"$f":"'VNOS PODATKOV'!C37","v":"telefonska številka"},null,{"$f":"'VNOS PODATKOV'!D37","v":0}]
[{"$f":"'VNOS PODATKOV'!C38","v":"elektronski naslov"},null,{"$f":"'VNOS PODATKOV'!D38","v":0}]
[]
[{"$f":"'VNOS PODATKOV'!C39","v":"POOBLAŠČENEC"}]
[{"$f":"'VNOS PODATKOV'!C40","v":"podatki se vpišejo, kadar je imenovan pooblaščenec"}]
[{"$f":"'VNOS PODATKOV'!C42","v":"ime in priimek ali naziv družbe"},null,{"$f":"IF('VNOS PODATKOV'!D$41=TRUE,'VNOS PODATKOV'!D42, \"\")","v":""}]
[{"$f":"'VNOS PODATKOV'!C43","v":"naslov ali sedež družbe"},null,{"$f":"IF('VNOS PODATKOV'!D$41=TRUE,'VNOS PODATKOV'!D43, \"\")","v":""}]
[]
["NAVEDBA ORGANA, PRI KATEREM SE VLAGA DOPOLNITEV"]
["naziv"]
["naslov"]
[]
["PODATKI O ZADEVI, KI SE VODI PRI UPRAVNEM ORGANU"]
["številka zadeve"]
["številka dopolnitve"]
["dopolnitev zahteve se nanaša na"]
[null,false,"zahtevo za izdajo projektnih in drugih pogojev"]
[null,false,"zahtevo za izdajo mnenja"]
[null,false,"zahtevo za izdajo gradbenega dovoljenja"]
[null,false,"zahtevo za izdajo gradbenega dovoljenja za nezahtevni objekt"]
[null,false,"zahtevo za izdajo gradbenega dovoljenja za spremembo namembnosti"]
[null,false,"zahtevo za izdajo uporabnega dovoljenja"]
[null,false,"zahtevo za legalizacijo ali uporabno dovoljenje za obstoječe objekte"]
[null,false,"drugo zahtevo"]
["vsebina dopolnitve"]
[]
[null,null,"Na podlagi navedenih podatkov in drugih priloženih listin dopolnjujem zahtevo."]
[]
["datum",null,"podpis vložnika"]
[{"$f":"TODAY()","v":"2023-03-24"}]
[]
[]
["PRILOGE"]
["navesti, katere"]

{"sheet":"16B DOPOL PODALJ","index":9,"n_rows":44,"n_cols":3,"rows_kept":44,"cut":false,"hidden":false,"merged":[[1,0,1,2],[25,0,25,1],[26,0,26,1]]}
["PRILOGA 16B"]
["ZAHTEVA ZA PODALJŠANJE \nROKA ZA DOPOLNITEV VLOGE"]
[]
[{"$f":"'VNOS PODATKOV'!C22","v":"INVESTITOR"}]
[{"$f":"'VNOS PODATKOV'!C23","v":"INVESTITOR 1"}]
[{"$f":"'VNOS PODATKOV'!C24","v":"ime in priimek ali naziv družbe"},null,{"$f":"'VNOS PODATKOV'!D24","v":0}]
[{"$f":"'VNOS PODATKOV'!C25","v":"naslov ali sedež družbe"},null,{"$f":"'VNOS PODATKOV'!D25","v":0}]
[{"$f":"'VNOS PODATKOV'!C27","v":"INVESTITOR 2"}]
[{"$f":"'VNOS PODATKOV'!C28","v":"ime in priimek ali naziv družbe"},null,{"$f":"'VNOS PODATKOV'!D28","v":0}]
[{"$f":"'VNOS PODATKOV'!C29","v":"naslov ali sedež družbe"},null,{"$f":"'VNOS PODATKOV'!D29","v":0}]
[{"$f":"'VNOS PODATKOV'!C31","v":"INVESTITOR 3"}]
[{"$f":"'VNOS PODATKOV'!C32","v":"ime in priimek ali naziv družbe"},null,{"$f":"'VNOS PODATKOV'!D32","v":0}]
[{"$f":"'VNOS PODATKOV'!C33","v":"naslov ali sedež družbe"},null,{"$f":"'VNOS PODATKOV'!D33","v":0}]
[]
[{"$f":"'VNOS PODATKOV'!C35","v":"KONTAKTNA OSEBA"}]
[{"$f":"'VNOS PODATKOV'!C36","v":"ime in priimek"},null,{"$f":"'VNOS PODATKOV'!D36","v":0}]
[{"$f":"'VNOS PODATKOV'!C37","v":"telefonska številka"},null,{"$f":"'VNOS PODATKOV'!D37","v":0}]
[{"$f":"'VNOS PODATKOV'!C38","v":"elektronski naslov"},null,{"$f":"'VNOS PODATKOV'!D38","v":0}]
[]
[{"$f":"'VNOS PODATKOV'!C39","v":"POOBLAŠČENEC"}]
[{"$f":"'VNOS PODATKOV'!C40","v":"podatki se vpišejo, kadar je imenovan pooblaščenec"}]
[{"$f":"'VNOS PODATKOV'!C42","v":"ime in priimek ali naziv družbe"},null,{"$f":"IF('VNOS PODATKOV'!D$41=TRUE,'VNOS PODATKOV'!D42, \"\")","v":""}]
[{"$f":"'VNOS PODATKOV'!C43","v":"naslov ali sedež družbe"},null,{"$f":"IF('VNOS PODATKOV'!D$41=TRUE,'VNOS PODATKOV'!D43, \"\")","v":""}]
[]
["NAVEDBA ORGANA, PRI KATEREM SE VLAGA ZAHTEVA"]
["naziv"]
["naslov"]
[]
["PODATKI O ZADEVI, KI SE VODI PRI UPRAVNEM ORGANU"]
["številka zadeve"]
[{"$f":"'VNOS PODATKOV'!C74","v":"naziv gradnje"},null,{"$f":"'VNOS PODATKOV'!D74","v":0}]
["navedba dokumenta, \ns katerim je bil določen rok"]
[]
["ČAS PODALJŠANJA ROKA"]
[null,false,"15 dni"]
[null,false,"1 mesec"]
[null,false,"2 meseca"]
[]
["navedba razlogov za podaljšanje roka"]
[]
[null,null,"Na podlagi navedenih podatkov prosim za podaljšanje roka za dopolnitev vloge."]
[]
["datum",null,"podpis vložnika"]
[{"$f":"TODAY()","v":"2023-03-24"}]

{"sheet":"BAZA PODATKOV","index":10,"n_rows":371,"n_cols":3,"rows_kept":371,"cut":false,"hidden":false,"merged":[]}
["VRSTE PROJEKTNE DOKUMENTACIJE"]
[]
["DPP (idejna zasnova za pridobitev projektnih pogojev)",1]
["DGD (projektna dokumentacija za pridobivanje mnenj in gradbenega dovoljenja)",2]
["PZI (projektna dokumentacija za izvedbo gradnje)",3]
["PZI v delu, ki se nanaša na pripravljalna dela",4]
["PID (projektna dokumentacija izvedenih del)",5]
["DL (dokumentacija za legalizacijo)",6]
["DNZO (dokumentacija za pridobitev gradbenega dovoljenja za nezahtevne objekte)",7]
["DSN (dokumentacija za pridobitev gradbenega dovoljenja za spremembo namembnosti)",8]
["DOZ (dokazilo o zanesljivosti)",9]
[]
["FAZA PROJEKTA"]
[]
["DPP",1]
["DGD",2]
["PZI",3]
["PID",4]
[]
["VRSTE NAČRTOV"]
[]
["0/1 Vodilni načrt - načrt arhitekture"]
["0/2 Vodilni načrt - načrt gradbeništva"]
["0/3 Vodilni načrt - načrt elektrotehnike"]
["0/4 Vodilni načrt - načrt strojništva"]
["0/5 Vodilni načrt - načrt tehnologije"]
["0/6 Vodilni načrt - načrt požarne varnosti"]
["0/7 Vodilni načrt - načrt geotehnologije in rudarstva"]
["0/8 Vodilni načrt - načrt geodezije"]
["0/9 Vodilni načrt - načrt prometnega inženirstva"]
["0/10 Vodilni načrt - načrt krajinske arhitekture"]
["0 Vodilna mapa"]
["1 Načrt s področja arhitekture",1]
["2 Načrt s področja gradbeništva",2]
["3 Načrt s področja elektrotehnike",3]
["4 Načrt s področja strojništva",4]
["5 Načrt s področja tehnologije",5]
["6 Načrt s področja požarne varnosti",6]
["7 Načrt s področja geotehnologije in rudarstva",7]
["8 Načrt s področja geodezije",8]
["9 Načrt s področja prometnega inženirstva",9]
["10 Načrt s področja krajinske arhitekture",10]
[]
["IZKAZI"]
[]
["izkaz energijskih karakteristik prezračevanja stavbe"]
["izkaz toplotnih karakteristik stavbe"]
["izkaz požarne varnosti"]
["izkaz zaščite pred hrupom"]
[]
["ZAGOTAVLJANJE MINIMALNE KOMUNALNE OSKRBE"]
[]
["priključevanje ni predvideno"]
["nov priključek"]
["obstoječ priključek"]
["lastni vir"]
[]
["ODVAJANJE FEKALNIH VODA"]
[]
["nov priključek"]
["obstoječ priključek"]
["pretočna greznica"]
["čistilna naprava"]
[]
["ODVAJANJE METEORNIH VODA"]
[]
["nov priključek"]
["obstoječ priključek"]
["odvajanje v vodotok"]
["razpršeno odvajanje"]
["ponikovalnica"]
[]
["DRUGA OSKRBA Z ENERGIJO"]
[]
["lastni vir"]
[]
["lokacija priključitve"]
[]
["/"]
["obstoječa merilna omarica"]
["nova merilna omarica"]
[]
["/"]
["obstoječ vodomerni jašek"]
["nov vodomerni jašek"]
[]
["PROSTORSKI AKTI"]
[]
["OPN"]
["DLN"]
["PUP"]
["ZN"]
[]
["VRSTE GRADNJE"]
[]
["novogradnja - novozgrajen objekt"]
["novogradnja - prizidava"]
["rekonstrukcija"]
["odstranitev"]
["sprememba namembnosti"]
[]
["ZAHTEVNOST OBJEKTOV"]
[]
["zahteven"]
["manj zahteven"]
["nezahteven"]
["enostaven"]
[]
["POŽARNA ZAHTEVNOST OBJEKTOV"]
[]
["požarno zahteven objekt"]
["požarno manj zahteven objekt"]
[]
["DA/NE"]
[]
["DA"]
["NE"]
[]
["VRSTA OBJEKTA"]
[]
["STAVBA"]
["GRADBENI INŽENIRSKI OBJEKT"]
[]
[]
["GLAVNI ALI PRIPADAJOČI"]
[]
["GLAVNI OBJEKT"]
["PRIPADAJOČI OBJEKT"]
[]
[]
["CC-SI STAVBE"]
[]
["11100 Enostanovanjske stavbe"]
["11210 Dvostanovanjske stavbe"]
["11220 Tri- in večstanovanjske stavbe "]
["11301 Stanovanjske stavbe z oskrbovanimi stanovanji"]
["11302 Stanovanjske stavbe za druge posebne družbene skupine"]
["12111 Hotelske in podobne stavbe za kratkotrajno nastanitev"]
["12112 Gostilne, restavracije in točilnice"]
["12120 Druge gostinske stavbe za kratkotrajno nastanitev"]
["12201 Stavbe javne uprave"]
["12202 Stavbe bank, pošt, zavarovalnic"]
["12203 Druge poslovne stavbe"]
["12204 Konferenčne in kongresne stavbe"]
["12301 Trgovske stavbe"]
["12302 Sejemske dvorane, razstavišča"]
["12303 Oskrbne postaje"]
["12304 Stavbe za storitvene dejavnosti"]
["12410 Postajna poslopja, terminali, stavbe za izvajanje komunikacij ter z njimi povezane stavbe "]
["12420 Garažne stavbe"]
["12510 Industrijske stavbe"]
["12520 Rezervoarji, silosi in skladiščne stavbe"]
["12610 Stavbe za kulturo in razvedrilo"]
["12620 Muzeji, arhivi in knjižnice"]
["12630 Stavbe za izobraževanje in znanstvenoraziskovalno delo"]
["12640 Stavbe za zdravstveno oskrbo"]
["12650 Stavbe za šport"]
["12711 Stavbe za rastlinsko pridelavo"]
["12712 Stavbe za rejo živali"]
["12713 Stavbe za skladiščenje pridelka"]
["12714 Druge nestanovanjske kmetijske stavbe "]
["12721 Stavbe za opravljanje verskih obredov"]
["12722 Pokopališke stavbe"]
["12730 Kulturna dediščina, ki se ne uporablja za druge namene"]
["12740 Druge stavbe, ki niso uvrščene drugje"]
[]
["CC-SI GRADBENI INŽENIRSKI OBJEKTI"]
[]
["21111 Avtoceste, hitre ceste in glavne ceste (daljinske ceste)"]
["21112 Regionalne ceste"]
["21121 Lokalne ceste in javne poti, nekategorizirane ceste in gozdne ceste"]
["21122 Samostojna parkirišča"]
["21210 Glavne in regionalne železniške proge"]
["21220 Mestne železniške proge"]
["21301 Letališke steze in ploščadi"]
["21302 Letalski radio-navigacijski objekti"]
["21410 Mostovi, viadukti, nadvozi, nadhodi "]
["21421 Predori "]
["21422 Podhodi"]
["21423 Pokriti vkopi in galerije"]
["21510 Pristanišča in plovbne poti"]
["21520 Jezovi, vodne pregrade in drugi vodni objekti"]
["21530 Sistem za namakanje in osuševanje, akvadukti"]
["22110 Naftovodi in daljinski (prenosni) plinovodi"]
["22121 Daljinski (transportni) vodovodi"]
["22122 Objekti za črpanje, filtriranje in zajem vode"]
["22130 Daljinsko (hrbtenično) komunikacijsko omrežje"]
["22140 Daljinski (prenosni) elektroenergetski vodi"]
["22210 Lokalni (distribucijski) plinovodi"]
["22221 Lokalni vodovodi za pitno vodo in cevovodi za tehnološko vodo"]
["22222 Lokalni cevovodi za toplo vodo, paro in stisnjen zrak"]
["22223 Vodni stolpi in vodnjaki "]
["22231 Cevovodi za odpadno vodo (kanalizacija)"]
["22232 Čistilne naprave"]
["22241 Lokalni (distribucijski) elektroenergetski vodi"]
["22242 Lokalna (dostopovna) komunikacijska omrežja"]
["23010 Objekti za pridobivanje in izkoriščanje mineralnih surovin"]
["23020 Elektrarne in drugi energetski objekti"]
["23030 Objekti kemične industrije"]
["23040 Objekti težke industrije, ki niso uvrščeni drugje"]
["24110 Športna igrišča"]
["24121 Marine "]
["24122 Drugi gradbeni inženirski objekti za šport, rekreacijo in prosti čas"]
["24201 Obrambni objekti"]
["24202 Drugi kmetijski gradbeni inženirski objekti"]
["24203 Objekti za ravnanje z odpadki"]
["24204 Pokopališča"]
["24205 Drugi gradbeni inženirski objekti, ki niso uvrščeni drugje"]
[]
["CC-SI DRUGI GRADBENI POSEGI"]
[]
["31110 Nasipi"]
["31120 Izkopi in odkopi"]
["31130 Utrjene površine "]
["31140 Utrjene brežine"]
["31150 Grajene gozdne vlake"]
["31160 Grajena območja urbanih vrtov"]
["32110 Ekološki otoki"]
["32120 Urbana oprema"]
["32130 Objekti za oglaševanje in informacijski panoji"]
["32140 Spominska obeležja"]
["33110 Grajeni prostori na drevesu"]
["33120 Grajeni prostori na vodi"]
["33130 Nepokrita prezentirana arheološka najdišča in ruševine"]
["33140 Merilna mesta za opazovanje naravnih pojavov, naravnih virov in stanja okolja"]
[]
["ZVKDS"]
[]
["ZVKDS, Območna enota Celje","Glavni trg 1, 3000 Celje","tajnistvo.ce@zvkds.si"]
["ZVKDS, Območna enota Kranj","Tomšičeva ulica 7, 4000 Kranj","tajnistvo.kr@zvkds.si"]
["ZVKDS, Območna enota Ljubljana","Tržaška cesta 4, 1000 Ljubljana","tajnistvo.lj@zvkds.si"]
["ZVKDS, Območna enota Maribor","Slomškov trg 6, 2000 Maribor","tajnistvo.mb@zvkds.si"]
["ZVKDS, Območna enota Nova Gorica","Delpinova ulica 16, 5000 Nova Gorica","tajnistvo.ng@zvkds.si"]
["ZVKDS, Območna enota Novo mesto","Skalickega ulica 1, 8000 Novo mesto","tajnistvo.nm@zvkds.si"]
["ZVKDS, Območna enota Piran","Trg bratstva 1, 6330 Piran/Pirano","tajnistvo.pi@zvkds.si"]
[]
["Zavod RS za varstvo narave"]
[]
["Zavod RS za varstvo narave, OE Celje","Vodnikova ulica 3, 3000 Celje","zrsvn.oece@zrsvn.si"]
["Zavod RS za varstvo narave, OE Kranj","PC Planina 3, 4000 Kranj","zrsvn.oekr@zrsvn.si"]
["Zavod RS za varstvo narave, OE Ljubljana","Cankarjeva 10, 1000 Ljubljana","zrsvn.oelj@zrsvn.si"]
["Zavod RS za varstvo narave, OE Maribor","Pobreška cesta 20a, 2000 Maribor","zrsvn.oemb@zrsvn.si"]
["Zavod RS za varstvo narave, OE Nova Gorica","Delpinova 16, 5000 Nova Gorica","zrsvn.oeng@zrsvn.si"]
["Zavod RS za varstvo narave, OE Novo mesto","Adamičeva ul. 2, 8000 Novo mesto","zrsvn.oenm@zrsvn.si"]
["Zavod RS za varstvo narave, OE Piran","Trg Etbina Kristana1, 6310 Izola","zrsvn.oepi@zrsvn.si"]
["Zavod RS za varstvo narave, Osrednja enota v Ljubljani","Tobačna ulica 5, 1000 Ljubljana","zrsvn.oe@zrsvn.si"]
[]
["Direkcija RS za vode"]
[]
["Direkcija Republike Slovenije za vode","Hajdrihova ulica 28c, 1000 Ljubljana","gp.drsv@gov.si"]
["Direkcija RS za vode, Sektor območja zgornje Save","Ulica Mirka Vadnova 5, 4000 Kranj","gp.drsv-kr@gov.si"]
["Direkcija RS za vode, Sektor območja srednje Save","Vojkova cesta 52, 1000 Ljubljana","gp.drsv-lj@gov.si"]
["Direkcija RS za vode, Sektor območja spodnje Save","Novi trg 9, 8000 Novo mesto","gp.drsv-nm@gov.si"]
["Direkcija RS za vode, Sektor območja jadranskih rek z morjem","Pristaniška ulica 12, 6000 Koper","gp.drsv-kp@gov.si"]
["Direkcija RS za vode, Sektor območja Soče","Cankarjeva ulica 62, 5000 Nova Gorica","gp.drsv-ng@gov.si"]
["Direkcija RS za vode, Sektor območja Savinje","Mariborska cesta 88, 3000 Celje","gp.drsv-ce@gov.si"]
["Direkcija RS za vode, Sektor območja Drave","Krekova ulica 17, 2000 Maribor","gp.drsv-mb@gov.si"]
["Direkcija RS za vode, Sektor območja Mure","Slovenska ulica 2, 9000 Murska Sobota","gp.drsv-ms@gov.si"]
[]
["Zavod za gozdove Slovenije"]
[]
["Zavod za gozdove Slovenije, Centralna enota Ljubljana","Večna pot 2, 1001 Ljubljana","zgs.tajnistvo@zgs.si"]
["ZGS, Območna enota Tolmin","Tumov drevored 17, 5220 Tolmin","OETolmin@zgs.si"]
["ZGS, Območna enota Ljubljana","Tržaška c. 2, 1000 Ljubljana","OELjubljana@zgs.si"]
["ZGS, Območna enota Novo mesto","Gubčeva 15, 8000 Novo mesto","OENovomesto@zgs.si"]
["ZGS, Območna enota Nazarje","Savinjska cesta 4, 3331 Nazarje","OENazarje@zgs.si"]
["ZGS, Območna enota Murska Sobota","Arh. Novaka 17, 9000 Murska Sobota","OEMurskaSobota@zgs.si"]
["Zavod za gozdove Slovenije, Območna enota Bled","Ljubljanska cesta 19, 4260 Bled","OEBled@zgs.si"]
["Zavod za gozdove Slovenije, Območna enota Postojna","Vojkova 9, 6230 Postojna","OEPostojna@zgs.si"]
["Zavod za gozdove Slovenije, Območna enota Brežice","C. bratov Milavcev 61, 8250 Brežice","OEBrezice@zgs.si"]
["Zavod za gozdove Slovenije, Območna enota Slovenj Gradec","Vorančev trg 1, 2380 Slovenj gradec","OESlovenjGradec@zgs.si"]
["Zavod za gozdove Slovenije, Območna enota Sežana","Partizanska 49, 6210 Sežana","OESezana@zgs.si"]
["Zavod za gozdove Slovenije, Območna enota Kranj","C. Staneta Žagarja 27b, 4000 Kranj","OEKranj@zgs.si"]
["Zavod za gozdove Slovenije, Območna enota Kočevje","Rožna ul. 39, 1330 Kočevje","OEKocevje@zgs.si"]
["Zavod za gozdove Slovenije, Območna enota Celje","Ljubljanska 13, 3000 Celje","OECelje@zgs.si"]
["Zavod za gozdove Slovenije, Območna enota Maribor","Tyrševa 15, 2000 Maribor","OEMaribor@zgs.si"]
[]
["Upravljavec javne ceste"]
[]
["Direkcija RS za infrastrukturo","Tržaška cesta 19, 1000 Ljubljana","gp.drsi@gov.si"]
["Družba za avtoceste RS ","Ulica XIV. divizije 4, 3000 Celje"]
[]
["Elektro"]
[]
["Elektro Celje","Vrunčeva 2a, 3000 Celje","info@elektro-celje.si"]
["Elektro Gorenjska","Ul. Mirka Vadnova 3a, 4000 Kranj","info@elektro-gorenjska.si"]
["Elektro Ljubljana","Slovenska cesta 58, 1516 Ljubljana","info@elektro-ljubljana.si"]
["Elektro Maribor","Vetrinjska ulica 2, 2000 Maribor","info@elektro-maribor.si"]
["Elektro Primorska","Erjavčeva ulica 22, 5000 Nova Gorica","info@elektro-primorska.si"]
["ELES","Hajdrihova 2, SI-1000 Ljubljana","info@eles.si"]
[]
["POLICIJSKA UPRAVA"]
[]
["Policijska uprava Celje ","Ljubljanska cesta 12 , 3000 Celje "]
["Policijska uprava Koper","Ukmarjev trg 6, 6000 Koper"]
["Policijska uprava Kranj","Bleiweisova cesta 3, 4000 Kranj "]
["Policijska uprava Ljubljana","Prešernova cesta 18, 1001 Ljubljana"]
["Policijska uprava Maribor","Maistrova ulica 2, 2001 Maribor"]
["Policijska uprava Murska Sobota","Ulica arhitekta Novaka 5. 9000 Murska Sobota"]
["Policijska uprava Nova Gorica ","Sedejeva ulica 11, 5000 Nova Gorica"]
["Policijska uprava Novo mesto","Ljubljanska cesta 30, 8000 Novo mesto "]
[]
["PODLAGE ZA PROJEKTIRANJE"]
[]
["TSG požarna varnost v stavbah"]
["zadnje stanje gradbene tehnike"]
[]
["TSG nizkonapetostne električne inštalacije"]
["zadnje stanje gradbene tehnike"]
[]
["TSG zaščita pred delovanjem strele"]
["zadnje stanje gradbene tehnike"]
[]
["TSG učinkovita raba energije"]
[]
["TSG zaščita pred hrupom v stavbah"]
["zadnje stanje gradbene tehnike"]
[]
["uporaba evrokodov"]
["uporaba drugih pravil"]
["brez uporabe pravil"]
[]
["MNENJA"]
[]
["OBČINA"]
[]
["VAROVANA OBMOČJA"]
["VARSTVO KULTURNE DEDIŠČINE - POSEG"]
["VARSTVO KULTURNE DEDIŠČINE - RAZISKAVA IN ODSTRANITEV"]
["VARSTVO NARAVE"]
["VARSTVO PODZEMNIH JAM"]
["VARSTVO VODA"]
["VARSTVO GOZDOV"]
["RIBIŠKI OKOLIŠ"]
["OKOLJE DIVJADI"]
["OBMOČJE MEJNEGA PREHODA"]
["CARINA"]
["LETALIŠČA"]
["OVIRE ZA ZRAČNI PROMET"]
["VARNOST PLOVBE"]
["OBJEKT V MEJAH RUDNIŠKEGA PROSTORA"]
["OBJEKT V VAROVALNEM PASU ŽIČNIŠKE NAPRAVE"]
[]
["VAROVALNI PASOVI INFRASTRUKTURE"]
["VODOVOD"]
["ELEKTRIKA"]
["PLIN"]
["TOPLOVOD"]
["FEKALNE VODE"]
["METEORNE VODE"]
["KOMUNIKACIJSKI VODI"]
["JAVNE CESTE"]
["ŽELEZNICE - GRADNJA"]
["ŽELEZNICE"]
[]
["PRIKLJUČEVANJE NA INFRASTRUKTURO"]
["VODOVOD"]
["ELEKTRIKA"]
["PLIN"]
["TOPLOVOD"]
["FEKALNE VODE"]
["METEORNE VODE"]
["DOSTOP"]
["KOMUNIKACIJE"]
[]
["DRUGA MNENJA"]
["JEDRSKA VARNOST "]
["SEVALNA VARNOST "]
["KMETIJSKO GOSPODARSTVO"]
["VETERINA"]
["OBRAMBA"]